Workbook

Sheet COVER
I3: Alat za Status pripreme projekta JPP-a
I4: Verzija - Srpanj (July) 2014

Sheet 0 - NAVIGATION
I2: GLAVNI IZBORNIK

Sheet QUESTIONNAIRE
B2: UPITNIK
C6: Trenutno radimo na projektu: | E6: =+F18&"_"&YEAR(F20)&"-"&MONTH(F20)&"-"&DAY(F20) -> NAZIV_2011-11-11
H10: Project's scoring
B11: NAPOMENA: Znak ∞ služi da signalizira korisniku međuovisnost pitanja s ostalim dijelovima upitnika označenim masnim slovima (bold).
A12: Osnovne informacije
C18: Naziv projekta | F18: NAZIV
F19: DD/MM/GGGG
C20: Datum procjene | F20: 2011-11-11
C22: Naziv javnog tijela | F22: Upišite ovdje
C24: Kratki opis projekta | F24: Upišite ovdje
A27: Izbor i definiranje investicije
H30: Score | I30: Importance | J30: Weight 2 | K30: Weight 1 | M30: You said
H31: =+H34*K34+H46*K46+H56*K56+H66*K66 -> 1 | M31: =+AVERAGE(M34,M46,M56,M66) -> 10
I32: =+IF($F$40="DA",SUM($I$36:$I$44),SUM($I$36,$I$38,$I$44)) -> 9
C34: Je li investicijska potreba identificirana u lokalnom/nacionalnom planu izgradnje infrastrukturnih objekata ili sektorskom investicijskom programu? | F34: DA | H34: =+IF(F34="DA",1+SUM(H36:H44),0) -> 1 | I34: 1 | J34: =SUM(J36:J44) -> -1 | K34: =+I34/+SUM($I$34,$I$46,$I$56,$I$66) -> 0.1111111111 | M34: =+IF(F34="DA",10,0) -> 10
C35: Ako DA:
D36: Je li plan izgradnje infrastrukturnih objekata/sektorski investicijski program odobren od središnje ili lokalne vlasti? | F36: DA | H36: =+IF(F36="DA",0,J36) -> 0 | I36: 3 | J36: =-I36/$I$32 -> -0.3333333333
D38: Jesu li potencijalna sredstva (uključivo bilo koja proračunska sredstva) potrebna za implementaciju investicije identificirana u planu izgradnje infrastrukturnih objekata/investicijskom programu? | F38: DA | H38: =+IF(F38="DA",0,J38) -> 0 | I38: 2 | J38: =-I38/$I$32 -> -0.2222222222
D40: Postoji li bilo koja druga povezana infrastruktura koja je neophodna za završetak investicije? | F40: DA
E42: Ako DA, jesu li druge povezane infrastrukturne investicije planirane/odobrene da budu dovršene u koordinaciji s predmetnom investicijom? | F42: DA | H42: =+IF(OR(AND(F42="DA",F40="DA"),F40="NE",F40="--Molimo odaberite--"),0,J42) -> 0 | I42: 3 | J42: =-I42/$I$32 -> -0.3333333333
D44: Je li izvršena provjera da li je investicija dio EU programa razvoja infrastrukture (npr. TEN-T, TEN-E)? | F44: DA | H44: =+IF(F44="DA",0,J44) -> 0 | I44: 1 | J44: =-I44/$I$32 -> -0.1111111111
C46: Je li napravljena preliminarna studija potreba za predmetnom investicijom? | F46: DA | H46: =+IF(F46="DA",1+SUM(H48:H54),0) -> 1 | I46: 3 | J46: =SUM(J47:J54) -> -1 | K46: =+I46/+SUM($I$34,$I$46,$I$56,$I$66) -> 0.3333333333 | M46: =+IF(F46="DA",10,0) -> 10
C47: Ako DA:
D48: Je li u novije vrijeme provedena analiza pomoću općenito priznate metodologije analize troškova-koristi? | F48: DA | H48: =+IF(F48="DA",0,J48) -> 0 | I48: 3 | J48: =-+I48/SUM($I$48:$I$54) -> -0.3
D50: Jesu li druge projektne opcije procijenjene i prioritizirane? | F50: DA | H50: =+IF(F50="DA",0,J50) -> 0 | I50: 2 | J50: =-+I50/SUM($I$48:$I$54) -> -0.2
D52: Je li odabrana investicijska opcija odobrena od odgovarajućeg tijela? | F52: DA | H52: =+IF(F52="DA",0,J52) -> 0 | I52: 3 | J52: =-+I52/SUM($I$48:$I$54) -> -0.3
D54: Postoji li jasna politička potpora za odabranu investicijsku opciju? | F54: DA | H54: =+IF(F54="DA",0,J54) -> 0 | I54: 2 | J54: =-+I54/SUM($I$48:$I$54) -> -0.2
C56: Jesu li procijenjeni interesi pojedinaca/organizacija? | F56: DA | H56: =+IF(F56="DA",1+SUM(H58:H64),0) -> 1 | I56: 3 | J56: =SUM(J58:J64) -> -1 | K56: =+I56/+SUM($I$34,$I$46,$I$56,$I$66) -> 0.3333333333 | M56: =+IF(F56="DA",10,0) -> 10
C57: Ako DA:
D58: Jesu li identificirani pojedinci/organizacije na koje bi investicija mogla utjecati (npr. korisnici, lokalni stanovnici)? | F58: DA | H58: =+IF(F58="DA",0,J58) -> 0 | I58: 3 | J58: =-+I58/SUM($I$58:$I$64) -> -0.25
D60: Jesu li ti pojedinci/organizacije konzultirani? | F60: DA | H60: =+IF(F60="DA",0,J60) -> 0 | I60: 3 | J60: =-+I60/SUM($I$58:$I$64) -> -0.25
D62: Postoji li proces koji će osigurati da se povratne informacije dobivene konzultacijama uzimaju u obzir kroz cijelo vrijeme procesa pripreme projekta? | F62: DA | H62: =+IF(F62="DA",0,J62) -> 0 | I62: 3 | J62: -0.25
D64: Je li pripremljen plan rada i komunikacije s pojedincima/organizacijama? | F64: DA | H64: =+IF(F64="DA",0,J64) -> 0 | I64: 3 | J64: -0.25
C66: Je li provedena prethodna procjena jesu li tehnički i pravni aspekti investicije pogodni za JPP? | F66: DA | H66: =+IF(F66="DA",1+SUM(H68:H74),0) -> 1 | I66: 2 | J66: =SUM(J67:J74) -> -1 | K66: =+I66/+SUM($I$34,$I$46,$I$56,$I$66) -> 0.2222222222 | M66: =+IF(F66="DA",10,0) -> 10
C67: Ako DA:
D68: Je li procijenjena stabilnost investicijskog okvira i izlaznih specifikacija kroz kraće/srednjoročno vrijeme? | F68: DA | H68: =+IF(F68="DA",0,J68) -> 0 | I68: 2 | J68: =-+I68/SUM($I$68:$I$74) -> -0.2
D70: Ja li provedena analiza koja pokazuje da se investicijske potrebe mogu izraziti u obliku izlaznih specifikacija usluge te definirati u ugovornim odredbama? | F70: DA | H70: =+IF(F70="DA",0,J70) -> 0 | I70: 3 | J70: =-+I70/SUM($I$68:$I$74) -> -0.3
D72: Jesu li te izlazne specifikacije usluge razvijene uzimajući u obzir postojeće slučajeve ili raspoložive sektorske upute/praksu? | F72: DA | H72: =+IF(F72="DA",0,J72) -> 0 | I72: 2 | J72: =-+I72/SUM($I$68:$I$74) -> -0.2
D74: Je li provedena prethodna analiza da li je javno tijelo nadležno za nabavu usluga i zaključenje ugovora o JPP-u te povezanih ugovora? | F74: DA | H74: =+IF(F74="DA",0,J74) -> 0 | I74: 3 | J74: =-+I74/SUM($I$68:$I$74) -> -0.3
H77: =+H34*K34+H46*K46+H56*K56+H66*K66 -> 1
D80: SPREMNOST ZA POČETAK PRIPREME PROJEKTA U OBLIKU JPP-a
C84: Da li je analiza troškova i koristi pokazala potrebu za investicijom? | F84: DA
C86: Postoji li suglasnost o okviru i zahtjevima investicije? | F86: DA
C88: Postoji li potrebno odobrenje za nastavak razvoja investicije kao potencijalnog JPP-a? | F88: DA
H89: =+IF(AND(F84="DA",F88="DA",F86="DA"),1,0) -> 1
A92: Priprema projekta u obliku JPP-a
B95: Upravljanje i planiranje procesom
B97: Osnivanje i struktura projektnog tima | H97: Score | I97: Importance | J97: Weight 2 | K97: Weight 1 | M97: You said
H98: =H101*K101+H109*K109+H135*K135 -> 1 | M98: =+AVERAGE(M101,M109,M119) -> 10
I99: =SUM(I101,I109,I135) -> 9
C101: Je li osnovano stručno povjerenstvo (stručna komisija) koja će nadgledati pripremu projekta i proces javne nabave? | F101: DA | H101: =+IF(F101="DA",1+SUM(H103:H107),0) -> 1 | I101: 3 | J101: =SUM(J102:J107) -> -1 | K101: =I101/$I$99 -> 0.3333333333 | M101: =+IF(F101="DA",10,0) -> 10
C102: Ako DA:
D103: Je li u javnom tijelu odabrana osoba odgovarajućih ovlasti koja ce voditi stručno povjerenstvo (stručnu komisiju) te preuzeti ukupnu odgovornost za realizaciju projekta? | F103: DA | H103: =+IF(F103<>"DA",J103,0) -> 0 | I103: 3 | J103: =-I103/SUM($I$103:$I$107) -> -0.375
D105: Jesu li odabrani ostali članovi stručnog povjerenstva (stručne komisije) u skladu s njihovom raspolozivošću te sposobnošću da upravljaju i donose odluke za vrijeme faza pripreme i nabave projekta do potpisa ugovora. | F105: DA | H105: =+IF(F105<>"DA",J105,0) -> 0 | I105: 3 | J105: =-I105/SUM($I$103:$I$107) -> -0.375
D107: Jesu li pravila postupanja stručnog povjerenstva (stručne komisije) dogovorena u nadležnom javnom tijelu? | F107: DA | H107: =+IF(F107="DA",0,J107) -> 0 | I107: 2 | J107: =-I107/SUM($I$103:$I$107) -> -0.25
C109: Je li za projekt osnovan Projektni tim? | F109: DA | H109: =+IF(F109="DA",H111*K111+H119*K119+H133*K133,0) -> 1 | I109: 3 | J109: =H111*K111+H119*K119+H133*K133 -> 1 | K109: =I109/$I$99 -> 0.3333333333 | M109: =+IF(F109="DA",10,0) -> 10
C110: Ako DA:
D111: Je li odabran Voditelj projektnog tima? | F111: DA | H111: =+IF(F111="DA",1+SUM(H113:H117),0) -> 1 | I111: 3 | J111: =SUM(J112:J117) -> -1 | K111: =I111/SUM($I$111,$I$119,$I$133) -> 0.375
E113: Je li Voditelj projektnog tima radio na sličnim projektima (sektor, veličina i tehnička zahtjevnost) u prošlosti? | F113: DA | H113: =+IF(F113<>"DA",J113,0) -> 0 | I113: 2 | J113: =-I113/SUM($I$113:$I$117) -> -0.25
E115: Je li Voditelj projektnog tima već radio na jednom ili više projekata JPP-a? | F115: DA | H115: =+IF(F115<>"DA",J115,0) -> 0 | I115: 3 | J115: =-I115/SUM($I$113:$I$117) -> -0.375
E117: Je li Voditelj projektnog tima posvećen projektu puno radno vrijeme? | F117: DA | H117: =+IF(F117<>"DA",J117,0) -> 0 | I117: 3 | J117: =-I117/SUM($I$113:$I$117) -> -0.375
D119: Jesu li procijenjeni ljudski resursi potrebni za pripremu i nabavu projekta? | F119: DA | H119: =+IF(F119="DA",1+SUM(H121:H131),0) -> 1 | I119: 3 | J119: =SUM(J121:J131) -> -1 | K119: =I119/SUM($I$111,$I$119,$I$133) -> 0.375
E121: Da li ta procjena uzima u obzir potrebnu razinu stručnosti i količinu ljudskih resursa? | F121: DA | H121: =+IF(F121="DA",0,J121) -> 0 | I121: 3 | J121: =-I121/SUM($I$121:$I$131) -> -0.2142857143
E123: Da li se ta procjena temelji na analizi ljudskih resursa u ranijim sličnim projektima? | F123: DA | H123: =+IF(F123="DA",0,J123) -> 0 | I123: 2 | J123: =-I123/SUM($I$121:$I$131) -> -0.1428571429
E125: Da li ova analiza sadrži ljudske resurse dostupne u javnom tijelu i javnom sektoru te vanjske usluge konzultanata koje trebaju biti ugovorene? | F125: DA | H125: =+IF(F125="DA",0,J125) -> 0 | I125: 2 | J125: =-I125/SUM($I$121:$I$131) -> -0.1428571429
E127: Jesu li procijenjeni ukupni troškovi potrebnih internih i vanjskih aktivnosti? | F127: DA | H127: =+IF(F127="DA",0,J127) -> 0 | I127: 2 | J127: =-I127/SUM($I$121:$I$131) -> -0.1428571429
D129: Je li odobren proračun koji će pokriti potrebne ljudske resurse? | F129: DA | H129: =+IF(F129="DA",0,J129) -> 0 | I129: 3 | J129: =-I129/SUM($I$121:$I$131) -> -0.2142857143
E131: Je li proračun za vanjske usluge konzultanata utemeljen na procjeni tržisnih troškova? | F131: DA | H131: =+IF(F131="DA",0,J131) -> 0 | I131: 2 | J131: =-I131/SUM($I$121:$I$131) -> -0.1428571429
D133: Jesu li Projektnom timu dodijeljene ovlasti potrebne za provođenje pripreme i nabave projekta? | F133: DA | H133: =+IF(F133="DA",1,0) -> 1 | I133: 2 | K133: =I133/SUM($I$111,$I$119,$I$133) -> 0.25
C135: Jesu li ugovoreni iskusni pravni, financijski i tehnički konzultanti? | F135: DA | H135: =+IF(F135="DA",1+SUM(H137:H145),0) -> 1 | I135: 3 | J135: =SUM(J137:J145) -> -1 | K135: =I135/$I$99 -> 0.3333333333 | M135: =+IF(F135="DA",10,0) -> 10
C136: Ako DA:
D137: Jesu li konzultanti odabrani u postupku javnog nadmetanja? | F137: DA | H137: =+IF(F137="DA",0,J137) -> 0 | I137: 1 | J137: =-I137/SUM($I$137:$I$145) -> -0.08333333333
D139: Da li je javno tijelo konzultantima dalo jasan projektni zadatak za konzultantske usluge? | F139: DA | H139: =+IF(F139="DA",0,J139) -> 0 | I139: 3 | J139: =-I139/SUM($I$137:$I$145) -> -0.25
D141: Jesu li mogući sukobi interesa između konzultanata i potencijalnih ponuditelja uzeti u obzir? | F141: DA | H141: =+IF(F141="DA",0,J141) -> 0 | I141: 3 | J141: =-I141/SUM($I$137:$I$145) -> -0.25
D143: Imaju li pojedinci iz konzultantskih kompanija, koji će raditi na projektu, dokazano iskustvo i stručnost u svojim područjima? | F143: DA | H143: =+IF(F143="DA",0,J143) -> 0 | I143: 3 | J143: =-I143/SUM($I$137:$I$145) -> -0.25
D145: Jesu li procijenjene potrebe za ostalim konzultantskim uslugama (npr. pitanje osiguranja, porezna pitanja, financijsko modeliranje, zaštita okoliša)? | F145: DA | H145: =+IF(F145="DA",0,J145) -> 0 | I145: 2 | J145: =-I145/SUM($I$137:$I$145) -> -0.1666666667
B149: Dobivanje potrebnih dozvola i odobrenja | H149: Score | I149: Importance | J149: Weight 2 | K149: Weight 1 | M149: You said
H150: =H153 -> 1
C153: Je li izvršena procjena svih neophodnih autorizacija, dozvola i odobrenja potrebnih za implementaciju projekta? | F153: DA | H153: =+IF(F153="DA",1+SUM(H155:H161),0) -> 1 | J153: =SUM(J155:J161) -> -1 | M153: =+IF(F153="DA",10,0) -> 10
C154: Ako DA:
D155: Da li ta procjena uključuje dostupnost zemljišta, eksproprijaciju, pitanja zaštite okoliša, zdravlja i sigurnosti? | F155: DA | H155: =+IF(F155="DA",0,J155) -> 0 | I155: 3 | J155: =-I155/SUM($I$155:$I$161) -> -0.5
B157: ∞ | D157: Da li proračun za pripremu projekta uključuje troškove dobivanja dozvola i odobrenja? (Pogledajte Osnivanje i struktura projektnog tima) | F157: DA | H157: =+IF(F157="DA",0,J157) -> 0 | I157: 1 | J157: =-I157/SUM($I$155:$I$161) -> -0.1666666667
D159: Da li procjena identificira osobe/tijela koja su zadužena za dobivanje dozvola i odobrenja? | F159: DA | H159: =+IF(F159="DA",0,J159) -> 0 | I159: 1 | J159: =-I159/SUM($I$155:$I$161) -> -0.1666666667
D161: Jesu li procijenjeni rizici povezani s dobivanjem dozvola i odobrenja te jesu li ti rizici uneseni u tablicu rizika? | F161: DA | H161: =+IF(F161="DA",0,J161) -> 0 | I161: 1 | J161: =-I161/SUM($I$155:$I$161) -> -0.1666666667
B164: Razvoj plana i rasporeda aktivnosti | H164: Score | I164: Importance | J164: Weight 2 | K164: Weight 1 | M164: You said
H165: =H168*K168+H176*K176 -> 1 | M165: =+AVERAGE(M168,M176) -> 10
I166: =I168+I176 -> 6
C168: Ima li javno tijelo usvojen plan za upravljanje pripremom i nabavom projekta? | F168: DA | H168: =+IF(F168="DA",1+SUM(H170:H174),0) -> 1 | I168: 3 | J168: =SUM(J169:J174) -> -1 | K168: =I168/$I$166 -> 0.5 | M168: =+IF(F168="DA",10,0) -> 10
C169: Ako DA:
D170: Jesu li definirane uloge svih članova projektnog tima? | F170: DA | H170: =+IF(F170<>"DA",J170,0) -> 0 | I170: 3 | J170: =-I170/SUM($I$170:$I$174) -> -0.5
D172: Postoji li postupak za zapisivanje bilo koje izmjene tehničkih karakteristika i ugovornih odredbi projekta za vrijeme njegove pripreme? | F172: DA | H172: =+IF(F172<>"DA",J172,0) -> 0 | I172: 1 | J172: =-I172/SUM($I$170:$I$174) -> -0.1666666667
D174: Postoji li plan za dobivanje svih potrebnih autorizacija, dozvola i odobrenja za vrijeme procesa pripreme i nabave projekta? | F174: DA | H174: =+IF(F174<>"DA",J174,0) -> 0 | I174: 2 | J174: =-I174/SUM($I$170:$I$174) -> -0.3333333333
C176: Je li donesen raspored aktivnosti koji odražava zahtjeve pripreme i nabave projekta? | F176: DA | H176: =+IF(F176="DA",1+SUM(H178:H193),0) -> 1 | I176: 3 | J176: =SUM(J178:J193) -> -1 | K176: =I176/$I$166 -> 0.5 | M176: =+IF(F176="DA",10,0) -> 10
C177: Ako DA:
D178: Da li raspored aktivnosti uključuje bilo koji neophodan postupak javnih konzultacija? | F178: DA | H178: =+IF(F178<>"DA",J178,0) -> 0 | I178: 3 | J178: =-I178/SUM($I$178:$I$193) -> -0.1764705882
B180: ∞ | D180: Da li raspored aktivnosti omogućava dovoljno vremena za dobivanje svih potrebnih dozvola i odobrenja? | F180: DA | H180: =+IF(F180<>"DA",J180,0) -> 0 | I180: 3 | J180: =-I180/SUM($I$178:$I$193) -> -0.1764705882
D181: (Pogledaje Dobivanje potrebnih dozvola i odobrenja)
B183: ∞ | D183: Da li raspored aktivnosti omogućava dovoljno vremena za dobivanje odobrenja za bilo koje vanjske izvore sredstava (npr.nepovratna sredstva - "grants")? | F183: DA | H183: =+IF(F183<>"DA",J183,0) -> 0 | I183: 3 | J183: =-I183/SUM($I$178:$I$193) -> -0.1764705882
D184: Pogledajte Razvoj analize priuštivosti
B186: ∞ | D186: Da li raspored aktivnosti omogućava dovoljno vremena za adekvatno provođenje procesa nabave, uključujući prikupljanje financijskih sredstava? | F186: DA | H186: 0 | I186: 3 | J186: =-I186/SUM($I$178:$I$193) -> -0.1764705882
D187: (Pogledajte Provođenje ispitivanja tržišta i analize bankabilnosti)
D189: Da li raspored aktivnosti identificira ključne korake u postupku pripreme i nabave te prikazuje odnose između zadataka? | F189: DA | H189: =+IF(F189<>"DA",J189,0) -> 0 | I189: 2 | J189: =-I189/SUM($I$178:$I$193) -> -0.1176470588
D191: Da li je raspored aktivnosti u potpunosti prihvaćen i odobren od stručnog povjerenstva (stručne komisije) te odgovarajućeg javnog tijela? | F191: DA | H191: =+IF(F191<>"DA",J191,0) -> 0 | I191: 1 | J191: =-I191/SUM($I$178:$I$193) -> -0.05882352941
D193: Da li je razvijen početni plan za vođenje projeka u fazi nakon potpisivanja ugovora, uključujući upravljanje ugovorom, identifikaciju i obuku ključnih pojedinaca te osiguravanje učinkovitog podnošenja izvještaja i informacija o projektu? | F193: DA | H193: =+IF(F193<>"DA",J193,0) -> 0 | I193: 2 | J193: =-I193/SUM($I$178:$I$193) -> -0.1176470588
H196: =AVERAGE(H165,H150,H98) -> 1
B198: Razvoj JPP projekta
B200: Razvoj analize priuštivosti | H200: Score | I200: Importance | J200: Weight 2 | K200: Weight 1 | M200: You said
H201: =+H204 -> 1 | M201: =+M204 -> 10
I202: =(+IF(F230="DA",I232,0)+SUM(I240,I238,I236,I206:I228)) -> 35
C204: Je li pripremljena analiza priuštivosti da bi se dokazalo da su javno tijelo i/ili krajnji korisnici sposobni plaćati za projekt? | F204: DA | H204: =+IF(F204="DA",1+SUM(H206:H240),0) -> 1 | J204: =SUM(J206:J240) -> -1 | M204: =+IF(F204="DA",10,0) -> 10
C205: Ako DA:
D206: Jesu li procijenjeni ukupni životni troškovi projekta? | F206: DA | H206: =+IF(F206="DA",0,J206) -> 0 | I206: 3 | J206: =-I206/$I$202 -> -0.08571428571
D208: Da li analiza troškova uključuje kapitalne troškove, troškove poslovanja i održavanja, troškove životnog ciklusa građevine, troškove financiranja, troškove dostupnosti zemljišta, troškove javnog sektora za upravljanje projektom, troškove osiguranja, troškove pripreme projekta, transakcijske troškove i poreze? | F208: DA | H208: =+IF(F208="DA",0,J208) -> 0 | I208: 3 | J208: =-I208/$I$202 -> -0.08571428571
D210: Da li analiza troškova financiranja odražava trenutne tržišne uvjete za cijenu duga, rok dospijeća duga, povrat na kapital, odnos duga i kapitala - "gearing" i koeficijent pokrića duga? | F210: DA | H210: =+IF(F210="DA",0,J210) -> 0 | I210: 2 | J210: =-I210/$I$202 -> -0.05714285714
B212: ∞ | D212: Je li procjena troškova usklađena s nalazima ispitivanja tržišta i analize bankabilnosti, analize pojedinaca/organizacija te traženim izlaznim specifikacijama projekta? | F212: DA | H212: =+IF(F212="DA",0,J212) -> 0 | I212: 2 | J212: =-I212/$I$202 -> -0.05714285714
B214: ∞ | D214: Jesu li za pomoć u pripremi procjene troškova i financijskih pretpostavki korišteni konzultanti? (Pogledajte Osnivanje i struktura projektnog tima) | F214: DA | H214: =+IF(F214="DA",0,J214) -> 0 | I214: 2 | J214: =-I214/$I$202 -> -0.05714285714
D216: Jesu li identificirani izvori sredstava za projekt? (npr. plaćanja korisnika, nepovratna sredstva za kapitalne troškove - "capital grants", proračunska sredstva javnog tijela) | F216: DA | H216: =+IF(F216="DA",0,J216) -> 0 | I216: 3 | J216: =-I216/$I$202 -> -0.08571428571
D218: Je li provedena analiza da se utvrdi izvodljivost bilo kakvog plaćanja krajnjih korisnika? | F218: DA
E220: Ako DA, da li analiza pokriva spremnost krajnjih korisnika da plaćaju usluge? | F220: DA | H220: =+IF(AND(F220="DA",F218="DA"),0,J220) -> 0 | I220: 3 | J220: =-I220/$I$202 -> -0.08571428571
E222: Ako DA, da li analiza slijedi priznatu sektorsku medodologiju? | F222: DA | H222: =+IF(AND(F222="DA",F218="DA"),0,J222) -> 0 | I222: 2 | J222: =-I222/$I$202 -> -0.05714285714
D224: Je li procijenjena dostupnost, vjerojatnost i pravovremenost - "tajming" nepovratnih sredstava - "grants" trećih strana? | F224: DA | H224: =+IF(F224="DA",0,J224) -> 0 | I224: 2 | J224: =-I224/$I$202 -> -0.05714285714
D226: Je li procijenjena dostupnost i pravovremenost - "tajming" unutarnjih proračunskih sredstava za financiranje dijela kapitalnih troškova projekta? | F226: DA | H226: =+IF(F226="DA",0,J226) -> 0 | I226: 3 | J226: =-I226/$I$202 -> -0.08571428571
D228: Je li procijenjena dostupnost i pravovremenost - "tajming" javnih sredstava (osim sredstava samog javnog partnera) za podršku redovnom plaćanju naknade tijekom cjelokupnog životnog vijeka projekta? | F228: DA | H228: =+IF(F228="DA",0,J228) -> 0 | I228: 3 | J228: =-I228/$I$202 -> -0.08571428571
D230: Je li raspolaganje postojećom imovinom javnog tijela predviđeno kao potencijalni izvor financiranja? | F230: DA
E232: Ako DA, je li provedena analiza radi procjene vrijednosti i pravovremenosti - "tajminga" povezanih prihoda? | F232: DA | H232: =+IF(OR(AND(F232="DA",F230="DA"),F230="NE",F230="--Molimo odaberite--"),0,J232) -> 0 | I232: 1 | J232: =-I232/$I$202 -> -0.02857142857
D234: Je li pripremljen financijski model radi procjene hoće li identificirani izvori financiranja pokriti troškove projekta, kada bude potrebno, za vrijeme cjelokupnog životnog vijeka projekta? | F234: DA
B236: ∞ | E236: Ako DA, jesu li konzultanti bili uključeni u pripremu financijskog modela? (pogledajte Osnivanje i struktura projektnog tima) | F236: DA | H236: =+IF(AND(F236="DA",F234="DA"),0,J236) -> 0 | I236: 1 | J236: =-I236/$I$202 -> -0.02857142857
D238: Je li provedena analiza osjetljivosti radi testiranja opstojnosti (robustnosti) priuštivosti projekta? | F238: DA | H238: =+IF(F238="DA",0,J238) -> 0 | I238: 2 | J238: =-I238/$I$202 -> -0.05714285714
D240: Je li analiza priuštivosti uzela u obzir skrivene (potencijalne) obveze plaćanja javnog tijela (npr. garanciju prihoda)? | F240: DA | H240: =+IF(F240="DA",0,J240) -> 0 | I240: 3 | J240: =-I240/$I$202 -> -0.08571428571
B243: Razvoj analize rizika | H243: Score | I243: Importance | J243: Weight 2 | K243: Weight 1 | M243: You said
H244: =H247*K247+H257*K257+H263*K263+H265*K265+H267*K267+H269*K269+H271*K271+H273*K273 -> 1 | M244: =+AVERAGE(M247,M257,M263,M265,M267,M269,M271,M273) -> 10
I245: =I247+I257+SUM(I263:I273) -> 21
C247: Jesu li identificirani rizici povezani s projektom? | F247: DA | H247: =+IF(F247="DA",1+SUM(H249:H255),0) -> 1 | I247: 3 | J247: =SUM(J249:J255) -> -1 | K247: =I247/$I$245 -> 0.1428571429 | M247: =+IF(F247="DA",10,0) -> 10
C248: Ako DA:
D249: Da li analiza pokriva sve faze projekta i sve grupe rizika (npr. pravni, tehnički, financijski, rizici okoliša)? | F249: DA | H249: =+IF(F249="DA",0,J249) -> 0 | I249: 3 | J249: =-I249/SUM($I$249:$I$255) -> -0.4285714286
D251: Da li analiza pokriva rizike povezane s obvezama javnog sektora i njegovom sposobnošću da realizira projekt? | F251: DA | H251: =+IF(F251="DA",0,J251) -> 0 | I251: 2 | J251: =-I251/SUM($I$249:$I$255) -> -0.2857142857
D253: Da li je pripremljena detaljna matrica rizika da se zabilježe ti rizici? | F253: DA | H253: =+IF(F253="DA",0,J253) -> 0 | I253: 1 | J253: =-I253/SUM($I$249:$I$255) -> -0.1428571429
D255: Jesu li rizici podijeljeni u odgovarajuće podrizike da bi se osiguralo potpuno i jasno razumijevanje opsega svakog rizika? | F255: DA | H255: =+IF(F255="DA",0,J255) -> 0 | I255: 1 | J255: =-I255/SUM($I$249:$I$255) -> -0.1428571429
C257: Je li provedena procjena rizika? | F257: DA | H257: =+IF(F257="DA",1+SUM(H259:H261),0) -> 1 | I257: 3 | J257: =+SUM(J259:J261) -> -1 | K257: =I257/$I$245 -> 0.1428571429 | M257: =+IF(F257="DA",10,0) -> 10
C258: Ako DA:
D259: Je li procijenjena vjerojatnost svakog rizika? | F259: DA | H259: =+IF(F259="DA",0,J259) -> 0 | I259: 2 | J259: =-I259/SUM($I$259:$I$261) -> -0.5
D261: Je li utjecaj rizika procijenjen u smislu troškova i vremena? | F261: DA | H261: =+IF(F261="DA",0,J261) -> 0 | I261: 2 | J261: =-I261/SUM($I$259:$I$261) -> -0.5
C263: Je li provedena preliminarna alokacija/podjela rizika na temelju alokacije svakog rizika na stranku koja je sposobna najbolje upravljati rizikom (javnog ili privatnog partnera)? | F263: DA | H263: =+IF(F263="DA",1,0) -> 1 | I263: 3 | K263: =I263/$I$245 -> 0.1428571429 | M263: =+IF(F263="DA",10,0) -> 10
C265: Jesu li mjere za ublažavanje bilo kojeg rizika projekta procijenjene i uključene u projektni plan te tehničke karakteristike i ugovorne odredbe projekta? | F265: DA | H265: =+IF(F265="DA",1,0) -> 1 | I265: 3 | K265: =I265/$I$245 -> 0.1428571429 | M265: =+IF(F265="DA",10,0) -> 10
B267: ∞ | C267: Je li ukupna analiza rizika uključila konzultante, posebno prilikom zadatka identifikacije, procjene i alokacije? (pogledajte Osnivanje i struktura projektnog tima) | F267: DA | H267: =+IF(F267="DA",1,0) -> 1 | I267: 2 | K267: =I267/$I$245 -> 0.09523809524 | M267: =+IF(F267="DA",10,0) -> 10
B269: ∞ | C269: Da li je analiza rizika utemeljena na procjeni izlaznih specifikacija usluge, ispitivanju tržišta & bankabilnosti te procjeni priuštivosti? | F269: DA | H269: =+IF(F269="DA",1,0) -> 1 | I269: 3 | K269: =I269/$I$245 -> 0.1428571429 | M269: =+IF(F269="DA",10,0) -> 10
C271: Da li je analiza rizika utemeljena na relevantnom presedanu (sličnom projektu)? | F271: DA | H271: =+IF(F271="DA",1,0) -> 1 | I271: 2 | K271: =I271/$I$245 -> 0.09523809524 | M271: =+IF(F271="DA",10,0) -> 10
C273: Je li uspostavljen proces upravljanja rizicima koji će omogućiti da rizici projekta budu praćeni, ponovno sagledani i ažurirani za vrijeme razvoja i poslovanja projekta? | F273: DA | H273: =+IF(F273="DA",1,0) -> 1 | I273: 2 | K273: =I273/$I$245 -> 0.09523809524 | M273: =+IF(F273="DA",10,0) -> 10
B276: Provođenje ispitivanja tržišta i analize bankabilnosti | H276: Score | I276: Importance | J276: Weight 2 | K276: Weight 1 | M276: You said
H277: =H280*K280+H286*K286+H288*K288+H294*K294+H308*K308+H310*K310+H312*K312+H314*K314+H316*K316 -> 1 | M277: =+AVERAGE(M280,M286,M288,M294,M308,M314,M312) -> 10
I278: =I280+I286+I288+I294+SUM(I308:I316) -> 22
C280: Je li procijenjena razina interesa/kapaciteta privatnog sektora (npr. izvoditelja radova, kreditora) za sudjelovanje u projektu? | F280: DA | H280: =+IF(F280="DA",1+SUM(H282:H284),0) -> 1 | I280: 3 | J280: =+SUM(J282:J284) -> -1 | K280: =I280/$I$278 -> 0.1363636364 | M280: =+IF(F280="DA",10,0) -> 10
C281: Ako DA:
D282: Je li razvijen plan ispitivanja tržišta koji identificira ključne karakteristike projekta (npr. profil rizika, trajanje ugovora) koje će biti testirane na tržištu? | F282: DA | H282: =+IF(F282="DA",0,J282) -> 0 | I282: 3 | J282: =-I282/SUM($I$282:$I$284) -> -0.6
D284: Da li je planom definiran jasan pristup za suradnju sa svim relevantnim tržišnim igračima u odgovarajuće vrijeme? | F284: DA | H284: =+IF(F284="DA",0,J284) -> 0 | I284: 2 | J284: =-I284/SUM($I$282:$I$284) -> -0.4
C286: Je li provedeno istraživanje radi identificiranja usporedivih projekata (npr. veličina, sektor, profil rizika) koji su nedavno financirani u zemlji ili širem okruženju? | F286: DA | H286: =+IF(F286="DA",1,0) -> 1 | I286: 2 | K286: =I286/$I$278 -> 0.09090909091 | M286: =+IF(F286="DA",10,0) -> 10
C288: Je li provedena analiza radi procjene sposobnosti izvoditelja radova i pružatelja usluga da izgrade i upravljaju projektom? | F288: DA | H288: =+IF(F288="DA",1+SUM(H290:H292),0) -> 1 | I288: 3 | J288: =+SUM(J290:J292) -> -1 | K288: =I288/$I$278 -> 0.1363636364 | M288: =+IF(F288="DA",10,0) -> 10
C289: Ako DA:
D290: Da li analiza pokriva njihovo prethodno iskustvo u projektima JPP-a? | F290: DA | H290: =+IF(F290="DA",0,J290) -> 0 | I290: 2 | J290: =-I290/SUM($I$290:$I$292) -> -0.4
D292: Da li opseg analize uključuje kapacitet tržišta da realizira tražene izlazne specifikacije projekta u skladu s očekivanom kvalitetom, troškovima i rasporedom aktivnosti? | F292: DA | H292: =+IF(F292="DA",0,J292) -> 0 | I292: 3 | J292: =-I292/SUM($I$290:$I$292) -> -0.6
C294: Je li provedena analiza da bi se procijenio kapacitet/želja potencijalnih kreditora da financiraju projekt? | F294: DA | H294: =+IF(F294="DA",1+SUM(H296:H306),0) -> 1 | I294: 3 | J294: =+SUM(J296:J306) -> -1 | K294: =I294/$I$278 -> 0.1363636364 | M294: =+IF(F294="DA",10,0) -> 10
C295: Ako DA:
D296: Da li analiza pokriva sve potencijalne izvore financiranja (npr. komercijalne banke, međunarodne ili domaće javne financijske institucije, kapitalne ulagače) za projekt? | F296: DA | H296: =+IF(F296="DA",0,J296) -> 0 | I296: 2 | J296: =-I296/SUM($I$296:$I$306) -> -0.1428571429
D298: Da li se analiza fokusira na njihovo iskustvo u financiranju projekata JPP-a (npr. projektno financiranje - "non-recourse project financing")? | F298: DA | H298: =+IF(F298="DA",0,J298) -> 0 | I298: 2 | J298: =-I298/SUM($I$296:$I$306) -> -0.1428571429
D300: Da li analiza ocjenjuje hoće li karakteristike projekta (npr. profil rizika) vjerojatno privući financiranje po razumnim uvjetima (npr. dugotrajno dospijeće duga)? | F300: DA | H300: =+IF(F300="DA",0,J300) -> 0 | I300: 3 | J300: =-I300/SUM($I$296:$I$306) -> -0.2142857143
D302: Da li analiza ocjenjuje hoće li kreditori vjerojatno zahtijevati garancije javnog tijela (npr. garanciju minimalne potražnje)? | F302: DA | H302: =+IF(F302="DA",0,J302) -> 0 | I302: 2 | J302: =-I302/SUM($I$296:$I$306) -> -0.1428571429
D304: U slučajevima kad se očekuje da ce nastati obveze plaćanja javnog sektora, da li analiza ocjenjuje hoće li kreditori biti zadovoljni sa sposobnošću nadležnih javnih tijela da podmire te obveze? | F304: DA | H304: =+IF(F304="DA",0,J304) -> 0 | I304: 3 | J304: =-I304/SUM($I$296:$I$306) -> -0.2142857143
D306: Da li analiza ocjenjuje hoće li kreditori biti zadovoljni s financijskim stanjem i tehničkim kapacitetima potencijalnih izvoditelja radova i pružatelja usluga? | F306: DA | H306: =+IF(F306="DA",0,J306) -> 0 | I306: 2 | J306: =-I306/SUM($I$296:$I$306) -> -0.1428571429
B308: ∞ | C308: Da li su konzultanti bili uključeni u Ispitivanje tržišta i analizu bankabilnosti? (pogledajte Osnivanje i struktura projektnog tima) | F308: DA | H308: =+IF(F308="DA",1,0) -> 1 | I308: 2 | K308: =I308/$I$278 -> 0.09090909091 | M308: =+IF(F308="DA",10,0) -> 10
C310: Da li analiza osigurava da je broj i opseg kontaktiranih organizacija dovoljno širok? | F310: DA | H310: =+IF(F310="DA",1,0) -> 1 | I310: 1 | K310: =I310/$I$278 -> 0.04545454545
C312: Jesu li rezultati analize uzeti u obzir u tehničkim karakteristikama i ugovornim odredbama projekta? | F312: DA | H312: =+IF(F312="DA",1,0) -> 1 | I312: 2 | K312: =I312/$I$278 -> 0.09090909091 | M312: =+IF(F312="DA",10,0) -> 10
C314: Da li sveukupna analiza tržišta ocjenjuje je li vjerojatno da će postojati jaka razina konkurencije između ponuditelja u nabavi projekta? | F314: DA | H314: =+IF(F314="DA",1,0) -> 1 | I314: 3 | K314: =I314/$I$278 -> 0.1363636364 | M314: =+IF(F314="DA",10,0) -> 10
C316: Je li analiza uključila fokusiranje na identificiranje zapreka jakoj konkurenciji? | F316: DA | H316: =+IF(F316="DA",1,0) -> 1 | I316: 3 | K316: =I316/$I$278 -> 0.1363636364 | M316: =+IF(F316="DA",10,0) -> 10
B320: Procjena JPP opcije u odnosu na alternativne opcije isporuke projekta | H320: Score | I320: Importance | J320: Weight 2 | K320: Weight 1 | M320: You said
H321: =H324 -> 1 | M321: =+M324 -> 10
I322: =IF($F$326="DA",I328,0)+SUM($I$330:$I$342) -> 20
C324: Da li je JPP opcija bila uspoređena s alternativnim privatnim i javnim opcijama isporuke projekta? | F324: DA | H324: =+IF(F324="DA",1+SUM(H328:H342),0) -> 1 | J324: =SUM(J326:J342) -> -1 | M324: =+IF(F324="DA",10,0) -> 10
C325: Ako DA:
D326: Postoji li propisana metodologija za takvu usporedbu? | F326: DA
E328: Ako DA, je li ta metodologija bila primijenjena? | F328: DA | H328: =+IF(OR(AND(F328="DA",F326="DA"),F326="--Molimo odaberite--"),0,J328) -> 0 | I328: 3 | J328: =-I328/$I$322 -> -0.15
D330: Da li je procjena uključila uspoređivanje sveukupnih dugoročnih troškova različitih opcija isporuke projekta sličnog opsega i zahtjeva za uslugom? | F330: DA | H330: =+IF(F330="DA",0,J330) -> 0 | I330: 3 | J330: =-I330/$I$322 -> -0.15
D332: Da li je ta procjena ocijenila vrijednost utjecaja rizika povezanih sa svakom od opcija isporuke projekta? | F332: DA | H332: =+IF(F332="DA",0,J332) -> 0 | I332: 3 | J332: =-I332/$I$322 -> -0.15
D334: Da li je ta procjena uzela u obzir kvalitativne faktore za svaku opciju isporuke projekta, kao što su prostor za fleksibilnost, mogućnosti za inovacije, upravljačke i organizacijske posljedice za javno tijelo, raniji početak usluge? | F334: DA | H334: =+IF(F334="DA",0,J334) -> 0 | I334: 3 | J334: =-I334/$I$322 -> -0.15
D336: Da li je ta procjena bila utemeljena na podacima dostupnim iz ranijih projekata? | F336: DA | H336: =+IF(F336="DA",0,J336) -> 0 | I336: 1 | J336: =-I336/$I$322 -> -0.05
B338: ∞ | D338: Da li je procjena uključila razinu konkurencije na tržištu za svaku od opcija isporuke projekta? (pogledajte Provođenje ispitivanja tržišta i analize bankabilnosti) | F338: DA | H338: =+IF(F338="DA",0,J338) -> 0 | I338: 2 | J338: =-I338/$I$322 -> -0.1
B340: ∞ | D340: Jesu li procijenjeni kapacitet i ljudski resursi projektnog tima da upravlja svakom opcijom isporuke projekta? (pogledajte Osnivanje i struktura projektnog tima) | F340: DA | H340: =+IF(F340="DA",0,J340) -> 0 | I340: 3 | J340: =-I340/$I$322 -> -0.15
B342: ∞ | D342: Da li je procijenjen raspored aktivnosti za svaku opciju isporuke projekta s obzirom na vrijeme potrebno za početak pružanja usluge? (pogledajte Razvoj plana i rasporeda aktivnosti) | F342: DA | H342: =+IF(F342="DA",0,J342) -> 0 | I342: 2 | J342: =-I342/$I$322 -> -0.1
B345: Kreiranje proračuna, računovodstveni i statistički tretman | H345: Score | I345: Importance | J345: Weight 2 | K345: Weight 1 | M345: You said
H346: =H349*K349+H351*K351+IF(F353="DA",H355*K355+H357*K357,0) -> 1 | M346: =+AVERAGE(M349:M354) -> 10
I347: =IF(F353="DA",SUM($I$355,$I$357),0)+SUM($I$349:$I$351) -> 8
C349: Da li je provedena procjena utjecaja projekta na proračun javnog tijela u skladu s internim proračunskim pravilima javnog tijela? | F349: DA | H349: =+IF(F349="DA",1,0) -> 1 | I349: 3 | K349: =I349/$I$347 -> 0.375 | M349: =+IF(F349="DA",10,0) -> 10
C351: Da li je provedena analiza vjerojatnog računovodstvenog tretmana projekta u financijskim izvještajima javnog tijela? | F351: DA | H351: =+IF(F351="DA",1,0) -> 1 | I351: 2 | K351: =I351/$I$347 -> 0.25 | M351: =+IF(F351="DA",10,0) -> 10
C353: Da li je država dužna podnositi izvještaj Eurostat-u u skladu s Europskim računovodstvenim sustavom? | F353: DA | M353: =+IF((AND(F353="DA",F355="DA",F357="DA")),10,"") -> 10
D355: Ako DA, je li provedena analiza vjerojatnog statističkog tretmana projekta (u skladu s Eurostatovim pravilima za JPP i koncesije)? | F355: DA | H355: =+IF(AND(F355="DA",F353="DA"),1,0) -> 1 | I355: 2 | K355: =I355/$I$347 -> 0.25
B357: ∞ | D357: Ako DA, je li ta analiza provedena uz podršku konzultanata ili nacionalnog statističkog ureda? (pogledajte Osnivanje i struktura projektnog tima) | F357: DA | H357: =+IF(AND(F357="DA",F353="DA"),1,0) -> 1 | I357: 1 | K357: =I357/$I$347 -> 0.125
B361: Priprema za nabavu
B364: Odabiranje oblika nabave | H364: Score | I364: Importance | J364: Weight 2 | K364: Weight 1 | M364: You said
H365: =+H368 -> 1 | M365: =+M409 -> 10
C368: Je li provedena analiza da bi se odabrao najprikladniji oblik nabave (npr. natjecateljski dijalog, pregovarački postupak) za projekt? | F368: DA | H368: =+IF(F368="DA",1+SUM(H370:H374),0) -> 1 | J368: =SUM(J370:J374) -> -1 | M368: =+IF(F368="DA",10,0) -> 10
C369: Ako DA:
... 62 more rows

Sheet OVERALL ASSESSMENT
B2: STRANICA CJELOKUPNA PROCJENA
B6: Trenutno radimo na projektu: | C6: =QUESTIONNAIRE!E6 -> NAZIV_2011-11-11
G10: 1
B11: AKTIVNOST | D11: STATUS | F11: section | G11: Score
B13: =QUESTIONNAIRE!A27 -> Izbor i definiranje investicije | D13: =IF($G$10=1,G13,0) -> 1 | F13: 1 | G13: =QUESTIONNAIRE!H77 -> 1
C15: Spremnost za početak pripreme projekta u obliku JPP-a | D15: =IF(AND(G15=1,G13=1)=TRUE,1,0) -> 1 | F15: =IF(G15=1,1,0) -> 1 | G15: =+QUESTIONNAIRE!H89 -> 1
B17: =QUESTIONNAIRE!B95 -> Upravljanje i planiranje procesom | D17: =IF($G$10=1,G17,0) -> 1 | F17: 2 | G17: =QUESTIONNAIRE!H196 -> 1
B19: =QUESTIONNAIRE!$B$198 -> Razvoj JPP projekta
B20: =" - "&QUESTIONNAIRE!B200 -> - Razvoj analize priuštivosti | D20: =IF($G$10=1,G20,0) -> 1 | F20: 2 | G20: =QUESTIONNAIRE!H201 -> 1
B21: =" - "&QUESTIONNAIRE!B243 -> - Razvoj analize rizika | D21: =IF($G$10=1,G21,0) -> 1 | F21: 2 | G21: =QUESTIONNAIRE!H244 -> 1
B22: =" - "&QUESTIONNAIRE!B276 -> - Provođenje ispitivanja tržišta i analize bankabilnosti | D22: =IF($G$10=1,G22,0) -> 1 | F22: 2 | G22: =QUESTIONNAIRE!H277 -> 1
B23: =" - "&QUESTIONNAIRE!B320 -> - Procjena JPP opcije u odnosu na alternativne opcije isporuke projekta | D23: =IF($G$10=1,G23,0) -> 1 | F23: 2 | G23: =QUESTIONNAIRE!H321 -> 1
B24: =" - "&QUESTIONNAIRE!B345 -> - Kreiranje proračuna, računovodstveni i statistički tretman | D24: =IF($G$10=1,G24,0) -> 1 | F24: 2 | G24: =QUESTIONNAIRE!H346 -> 1
B26: =QUESTIONNAIRE!B361 -> Priprema za nabavu | D26: =IF($G$10=1,G26,0) -> 1 | F26: 2 | G26: =QUESTIONNAIRE!H465 -> 1
C28: Spremnost za nabavu projekta | D28: =IF(AND(D15=1,G17=1,G20=1,G21=1,G22=1,G23=1,G24=1,G26=1,G28=1)=TRUE,1,0) -> 1 | F28: =IF(G28=1,2,0) -> 2 | G28: =QUESTIONNAIRE!H486 -> 1
C31: Sva područja u predmetnoj aktivnosti su vjerojatno dovršena | D31: =+G31 -> 1 | G31: 1
C32: Neka područja u predmetnoj aktivnosti još uvijek trebaju biti dovršena | D32: =+G32 -> 0.7 | G32: 0.7
C33: Mnoga područja u predmetnoj aktivnosti još uvijek trebaju biti dovršena | D33: 0.4 | G33: 0.4
C34: Nijedno područje u predmetnoj aktivnosti trenutno nije dovršeno | D34: =+G34 -> 0 | G34: 0

Sheet PROJECT2LOAD
B3: Odaberite projekt koji želite učitati
B5: NOVI PROJEKT

Sheet DATABASE
B4: DATABASE
B6: NOW READING: | D6: =+PROJECT2LOAD!B5 -> NOVI PROJEKT
J9: DO NOT DELETE COLUMN | K9: DO NOT DELETE COLUMN | M9: DO NOT DELETE COLUMN
I10: Number of ROW
A12: =+QUESTIONNAIRE!A12 -> Osnovne informacije | B12: =+QUESTIONNAIRE!B12 -> 0 | C12: =+QUESTIONNAIRE!C12 -> 0 | D12: =+QUESTIONNAIRE!D12 -> 0 | E12: =+QUESTIONNAIRE!E12 -> 0
A13: =+QUESTIONNAIRE!A13 -> 0 | B13: =+QUESTIONNAIRE!B13 -> 0 | C13: =+QUESTIONNAIRE!C13 -> 0 | D13: =+QUESTIONNAIRE!D13 -> 0 | E13: =+QUESTIONNAIRE!E13 -> 0 | H13: =+QUESTIONNAIRE!$F$18&"_"&YEAR(QUESTIONNAIRE!$F$20)&"-"&MONTH(QUESTIONNAIRE!$F$20)&"-"&DAY(QUESTIONNAIRE!$F$20) -> NAZIV_2011-11-11 | I13: 1 | J13: NOVI PROJEKT | K13: Primjer1_2014-1-1 | L13: NAZIV_2014-5-15 | M13: Primjer2_2014-1-1
A14: =+QUESTIONNAIRE!A14 -> 0 | B14: =+QUESTIONNAIRE!B14 -> 0 | C14: =+QUESTIONNAIRE!C14 -> 0 | D14: =+QUESTIONNAIRE!D14 -> 0 | E14: =+QUESTIONNAIRE!E14 -> 0 | I14: =+I13+1 -> 2
A15: =+QUESTIONNAIRE!A15 -> 0 | B15: =+QUESTIONNAIRE!B15 -> 0 | C15: =+QUESTIONNAIRE!C15 -> 0 | D15: =+QUESTIONNAIRE!D15 -> 0 | E15: =+QUESTIONNAIRE!E15 -> 0 | I15: =+I14+1 -> 3
A16: =+QUESTIONNAIRE!A16 -> 0 | B16: =+QUESTIONNAIRE!B16 -> 0 | C16: =+QUESTIONNAIRE!C16 -> 0 | D16: =+QUESTIONNAIRE!D16 -> 0 | E16: =+QUESTIONNAIRE!E16 -> 0 | I16: 4
A17: =+QUESTIONNAIRE!A17 -> 0 | B17: =+QUESTIONNAIRE!B17 -> 0 | C17: =+QUESTIONNAIRE!C17 -> 0 | D17: =+QUESTIONNAIRE!D17 -> 0 | E17: =+QUESTIONNAIRE!E17 -> 0 | I17: 5
A18: =+QUESTIONNAIRE!A18 -> 0 | B18: =+QUESTIONNAIRE!B18 -> 0 | C18: =+QUESTIONNAIRE!C18 -> Naziv projekta | F18: =+HLOOKUP($D$6,$J$13:$S$488,I18,FALSE) -> NAZIV | I18: 6 | J18: NAZIV | K18: Primjer1 | L18: NAZIV | M18: Primjer1
A19: =+QUESTIONNAIRE!A19 -> 0 | B19: =+QUESTIONNAIRE!B19 -> 0 | C19: =+QUESTIONNAIRE!C19 -> 0 | D19: =+QUESTIONNAIRE!D19 -> 0 | E19: =+QUESTIONNAIRE!E19 -> 0 | I19: 7 | J19: DD/MM/YY | K19: DD/MM/YY | L19: DD/MM/YYYY | M19: DD/MM/YY
A20: =+QUESTIONNAIRE!A20 -> 0 | B20: =+QUESTIONNAIRE!B20 -> 0 | C20: =+QUESTIONNAIRE!C20 -> Datum procjene | D20: =+QUESTIONNAIRE!D20 -> 0 | E20: =+QUESTIONNAIRE!E20 -> 0 | F20: =+HLOOKUP($D$6,$J$13:$S$488,I20,FALSE) -> 2014-01-01 | I20: 8 | J20: 2014-01-01 | K20: 2014-01-01 | L20: 15/05/2014 | M20: 2014-01-01
A21: =+QUESTIONNAIRE!A21 -> 0 | B21: =+QUESTIONNAIRE!B21 -> 0 | C21: =+QUESTIONNAIRE!C21 -> 0 | D21: =+QUESTIONNAIRE!D21 -> 0 | E21: =+QUESTIONNAIRE!E21 -> 0 | I21: 9
A22: =+QUESTIONNAIRE!A22 -> 0 | B22: =+QUESTIONNAIRE!B22 -> 0 | C22: =+QUESTIONNAIRE!C22 -> Naziv javnog tijela | D22: =+QUESTIONNAIRE!D22 -> 0 | E22: =+QUESTIONNAIRE!E22 -> 0 | F22: =+HLOOKUP($D$6,$J$13:$S$488,I22,FALSE) -> Upišite ovdje | I22: 10 | J22: Upišite ovdje | K22: Upišite ovdje | L22: Upišite ovdje | M22: Upišite ovdje
A23: =+QUESTIONNAIRE!A23 -> 0 | B23: =+QUESTIONNAIRE!B23 -> 0 | C23: =+QUESTIONNAIRE!C23 -> 0 | D23: =+QUESTIONNAIRE!D23 -> 0 | E23: =+QUESTIONNAIRE!E23 -> 0 | I23: 11
A24: =+QUESTIONNAIRE!A24 -> 0 | B24: =+QUESTIONNAIRE!B24 -> 0 | C24: =+QUESTIONNAIRE!C24 -> Kratki opis projekta | D24: =+QUESTIONNAIRE!D24 -> 0 | E24: =+QUESTIONNAIRE!E24 -> 0 | F24: =+HLOOKUP($D$6,$J$13:$S$488,I24,FALSE) -> Upišite ovdje | I24: 12 | J24: Upišite ovdje | K24: Upišite ovdje | L24: Upišite ovdje | M24: Upišite ovdje
A25: =+QUESTIONNAIRE!A25 -> 0 | B25: =+QUESTIONNAIRE!B25 -> 0 | C25: =+QUESTIONNAIRE!C25 -> 0 | D25: =+QUESTIONNAIRE!D25 -> 0 | E25: =+QUESTIONNAIRE!E25 -> 0 | I25: 13
A26: =+QUESTIONNAIRE!A26 -> 0 | B26: =+QUESTIONNAIRE!B26 -> 0 | C26: =+QUESTIONNAIRE!C26 -> 0 | D26: =+QUESTIONNAIRE!D26 -> 0 | E26: =+QUESTIONNAIRE!E26 -> 0 | I26: 14
A27: =+QUESTIONNAIRE!A27 -> Izbor i definiranje investicije | I27: 15
A28: =+QUESTIONNAIRE!A28 -> 0 | B28: =+QUESTIONNAIRE!B28 -> 0 | C28: =+QUESTIONNAIRE!C28 -> 0 | D28: =+QUESTIONNAIRE!D28 -> 0 | E28: =+QUESTIONNAIRE!E28 -> 0 | I28: 16
A29: =+QUESTIONNAIRE!A29 -> 0 | B29: =+QUESTIONNAIRE!B29 -> 0 | C29: =+QUESTIONNAIRE!C29 -> 0 | D29: =+QUESTIONNAIRE!D29 -> 0 | E29: =+QUESTIONNAIRE!E29 -> 0 | I29: 17
A30: =+QUESTIONNAIRE!A30 -> 0 | B30: =+QUESTIONNAIRE!B30 -> 0 | C30: =+QUESTIONNAIRE!C30 -> 0 | D30: =+QUESTIONNAIRE!D30 -> 0 | E30: =+QUESTIONNAIRE!E30 -> 0 | I30: 18
A31: =+QUESTIONNAIRE!A31 -> 0 | B31: =+QUESTIONNAIRE!B31 -> 0 | C31: =+QUESTIONNAIRE!C31 -> 0 | D31: =+QUESTIONNAIRE!D31 -> 0 | E31: =+QUESTIONNAIRE!E31 -> 0 | I31: 19
A32: =+QUESTIONNAIRE!A32 -> 0 | B32: =+QUESTIONNAIRE!B32 -> 0 | C32: =+QUESTIONNAIRE!C32 -> 0 | D32: =+QUESTIONNAIRE!D32 -> 0 | E32: =+QUESTIONNAIRE!E32 -> 0 | I32: 20
A33: =+QUESTIONNAIRE!A33 -> 0 | B33: =+QUESTIONNAIRE!B33 -> 0 | C33: =+QUESTIONNAIRE!C33 -> 0 | D33: =+QUESTIONNAIRE!D33 -> 0 | E33: =+QUESTIONNAIRE!E33 -> 0 | I33: 21
A34: =+QUESTIONNAIRE!A34 -> 0 | B34: =+QUESTIONNAIRE!B34 -> 0 | C34: =+QUESTIONNAIRE!C34 -> Je li investicijska potreba identificirana u lokalnom/nacionalnom planu izgradnje infrastrukturnih objekata ili sektorskom investicijskom programu? | D34: =+QUESTIONNAIRE!D34 -> 0 | E34: =+QUESTIONNAIRE!E34 -> 0 | F34: =+HLOOKUP($D$6,$J$13:$S$488,I34,FALSE) -> --Molimo odaberite-- | I34: 22 | J34: --Molimo odaberite-- | K34: NE | L34: DA | M34: DA
A35: =+QUESTIONNAIRE!A35 -> 0 | B35: =+QUESTIONNAIRE!B35 -> 0 | C35: =+QUESTIONNAIRE!C35 -> Ako DA: | D35: =+QUESTIONNAIRE!D35 -> 0 | E35: =+QUESTIONNAIRE!E35 -> 0 | I35: 23
A36: =+QUESTIONNAIRE!A36 -> 0 | B36: =+QUESTIONNAIRE!B36 -> 0 | C36: =+QUESTIONNAIRE!C36 -> 0 | D36: =+QUESTIONNAIRE!D36 -> Je li plan izgradnje infrastrukturnih objekata/sektorski investicijski program odobren od središnje ili lokalne vlasti? | E36: =+QUESTIONNAIRE!E36 -> 0 | F36: =+HLOOKUP($D$6,$J$13:$S$488,I36,FALSE) -> --Molimo odaberite-- | I36: 24 | J36: --Molimo odaberite-- | K36: DA | L36: DA | M36: DA
A37: =+QUESTIONNAIRE!A37 -> 0 | B37: =+QUESTIONNAIRE!B37 -> 0 | C37: =+QUESTIONNAIRE!C37 -> 0 | D37: =+QUESTIONNAIRE!D37 -> 0 | E37: =+QUESTIONNAIRE!E37 -> 0 | I37: 25
A38: =+QUESTIONNAIRE!A38 -> 0 | B38: =+QUESTIONNAIRE!B38 -> 0 | C38: =+QUESTIONNAIRE!C38 -> 0 | D38: =+QUESTIONNAIRE!D38 -> Jesu li potencijalna sredstva (uključivo bilo koja proračunska sredstva) potrebna za implementaciju investicije identificirana u planu izgradnje infrastrukturnih objekata/investicijskom programu? | E38: =+QUESTIONNAIRE!E38 -> 0 | F38: =+HLOOKUP($D$6,$J$13:$S$488,I38,FALSE) -> --Molimo odaberite-- | I38: 26 | J38: --Molimo odaberite-- | K38: DA | L38: DA | M38: DA
A39: =+QUESTIONNAIRE!A39 -> 0 | B39: =+QUESTIONNAIRE!B39 -> 0 | C39: =+QUESTIONNAIRE!C39 -> 0 | D39: =+QUESTIONNAIRE!D39 -> 0 | E39: =+QUESTIONNAIRE!E39 -> 0 | I39: 27
A40: =+QUESTIONNAIRE!A40 -> 0 | B40: =+QUESTIONNAIRE!B40 -> 0 | C40: =+QUESTIONNAIRE!C40 -> 0 | D40: =+QUESTIONNAIRE!D40 -> Postoji li bilo koja druga povezana infrastruktura koja je neophodna za završetak investicije? | E40: =+QUESTIONNAIRE!E40 -> 0 | F40: =+HLOOKUP($D$6,$J$13:$S$488,I40,FALSE) -> --Molimo odaberite-- | I40: 28 | J40: --Molimo odaberite-- | K40: DA | L40: DA | M40: DA
A41: =+QUESTIONNAIRE!A41 -> 0 | B41: =+QUESTIONNAIRE!B41 -> 0 | C41: =+QUESTIONNAIRE!C41 -> 0 | D41: =+QUESTIONNAIRE!D41 -> 0 | E41: =+QUESTIONNAIRE!E41 -> 0 | I41: 29
A42: =+QUESTIONNAIRE!A42 -> 0 | B42: =+QUESTIONNAIRE!B42 -> 0 | C42: =+QUESTIONNAIRE!C42 -> 0 | D42: =+QUESTIONNAIRE!D42 -> 0 | E42: =+QUESTIONNAIRE!E42 -> Ako DA, jesu li druge povezane infrastrukturne investicije planirane/odobrene da budu dovršene u koordinaciji s predmetnom investicijom? | F42: =+HLOOKUP($D$6,$J$13:$S$488,I42,FALSE) -> --Molimo odaberite-- | I42: 30 | J42: --Molimo odaberite-- | K42: DA | L42: DA | M42: DA
A43: =+QUESTIONNAIRE!A43 -> 0 | B43: =+QUESTIONNAIRE!B43 -> 0 | C43: =+QUESTIONNAIRE!C43 -> 0 | D43: =+QUESTIONNAIRE!D43 -> 0 | E43: =+QUESTIONNAIRE!E43 -> 0 | I43: 31
A44: =+QUESTIONNAIRE!A44 -> 0 | B44: =+QUESTIONNAIRE!B44 -> 0 | C44: =+QUESTIONNAIRE!C44 -> 0 | D44: =+QUESTIONNAIRE!D44 -> Je li izvršena provjera da li je investicija dio EU programa razvoja infrastrukture (npr. TEN-T, TEN-E)? | E44: =+QUESTIONNAIRE!E44 -> 0 | F44: =+HLOOKUP($D$6,$J$13:$S$488,I44,FALSE) -> --Molimo odaberite-- | I44: 32 | J44: --Molimo odaberite-- | K44: DA | L44: DA | M44: DA
A45: =+QUESTIONNAIRE!A45 -> 0 | B45: =+QUESTIONNAIRE!B45 -> 0 | C45: =+QUESTIONNAIRE!C45 -> 0 | D45: =+QUESTIONNAIRE!D45 -> 0 | E45: =+QUESTIONNAIRE!E45 -> 0 | I45: 33
A46: =+QUESTIONNAIRE!A46 -> 0 | B46: =+QUESTIONNAIRE!B46 -> 0 | C46: =+QUESTIONNAIRE!C46 -> Je li napravljena preliminarna studija potreba za predmetnom investicijom? | D46: =+QUESTIONNAIRE!D46 -> 0 | E46: =+QUESTIONNAIRE!E46 -> 0 | F46: =+HLOOKUP($D$6,$J$13:$S$488,I46,FALSE) -> --Molimo odaberite-- | I46: 34 | J46: --Molimo odaberite-- | K46: DA | L46: DA | M46: DA
A47: =+QUESTIONNAIRE!A47 -> 0 | B47: =+QUESTIONNAIRE!B47 -> 0 | C47: =+QUESTIONNAIRE!C47 -> Ako DA: | D47: =+QUESTIONNAIRE!D47 -> 0 | E47: =+QUESTIONNAIRE!E47 -> 0 | I47: 35
A48: =+QUESTIONNAIRE!A48 -> 0 | B48: =+QUESTIONNAIRE!B48 -> 0 | C48: =+QUESTIONNAIRE!C48 -> 0 | D48: =+QUESTIONNAIRE!D48 -> Je li u novije vrijeme provedena analiza pomoću općenito priznate metodologije analize troškova-koristi? | E48: =+QUESTIONNAIRE!E48 -> 0 | F48: =+HLOOKUP($D$6,$J$13:$S$488,I48,FALSE) -> --Molimo odaberite-- | I48: 36 | J48: --Molimo odaberite-- | K48: DA | L48: DA | M48: DA
A49: =+QUESTIONNAIRE!A49 -> 0 | B49: =+QUESTIONNAIRE!B49 -> 0 | C49: =+QUESTIONNAIRE!C49 -> 0 | D49: =+QUESTIONNAIRE!D49 -> 0 | E49: =+QUESTIONNAIRE!E49 -> 0 | I49: 37
A50: =+QUESTIONNAIRE!A50 -> 0 | B50: =+QUESTIONNAIRE!B50 -> 0 | C50: =+QUESTIONNAIRE!C50 -> 0 | D50: =+QUESTIONNAIRE!D50 -> Jesu li druge projektne opcije procijenjene i prioritizirane? | E50: =+QUESTIONNAIRE!E50 -> 0 | F50: =+HLOOKUP($D$6,$J$13:$S$488,I50,FALSE) -> --Molimo odaberite-- | I50: 38 | J50: --Molimo odaberite-- | K50: DA | L50: DA | M50: DA
A51: =+QUESTIONNAIRE!A51 -> 0 | B51: =+QUESTIONNAIRE!B51 -> 0 | C51: =+QUESTIONNAIRE!C51 -> 0 | D51: =+QUESTIONNAIRE!D51 -> 0 | E51: =+QUESTIONNAIRE!E51 -> 0 | I51: 39
A52: =+QUESTIONNAIRE!A52 -> 0 | B52: =+QUESTIONNAIRE!B52 -> 0 | C52: =+QUESTIONNAIRE!C52 -> 0 | D52: =+QUESTIONNAIRE!D52 -> Je li odabrana investicijska opcija odobrena od odgovarajućeg tijela? | E52: =+QUESTIONNAIRE!E52 -> 0 | F52: =+HLOOKUP($D$6,$J$13:$S$488,I52,FALSE) -> --Molimo odaberite-- | I52: 40 | J52: --Molimo odaberite-- | K52: DA | L52: DA | M52: DA
A53: =+QUESTIONNAIRE!A53 -> 0 | B53: =+QUESTIONNAIRE!B53 -> 0 | C53: =+QUESTIONNAIRE!C53 -> 0 | D53: =+QUESTIONNAIRE!D53 -> 0 | E53: =+QUESTIONNAIRE!E53 -> 0 | I53: 41
A54: =+QUESTIONNAIRE!A54 -> 0 | B54: =+QUESTIONNAIRE!B54 -> 0 | C54: =+QUESTIONNAIRE!C54 -> 0 | D54: =+QUESTIONNAIRE!D54 -> Postoji li jasna politička potpora za odabranu investicijsku opciju? | E54: =+QUESTIONNAIRE!E54 -> 0 | F54: =+HLOOKUP($D$6,$J$13:$S$488,I54,FALSE) -> --Molimo odaberite-- | I54: 42 | J54: --Molimo odaberite-- | K54: DA | L54: DA | M54: DA
A55: =+QUESTIONNAIRE!A55 -> 0 | B55: =+QUESTIONNAIRE!B55 -> 0 | C55: =+QUESTIONNAIRE!C55 -> 0 | D55: =+QUESTIONNAIRE!D55 -> 0 | E55: =+QUESTIONNAIRE!E55 -> 0 | I55: 43
A56: =+QUESTIONNAIRE!A56 -> 0 | B56: =+QUESTIONNAIRE!B56 -> 0 | C56: =+QUESTIONNAIRE!C56 -> Jesu li procijenjeni interesi pojedinaca/organizacija? | D56: =+QUESTIONNAIRE!D56 -> 0 | E56: =+QUESTIONNAIRE!E56 -> 0 | F56: =+HLOOKUP($D$6,$J$13:$S$488,I56,FALSE) -> --Molimo odaberite-- | I56: 44 | J56: --Molimo odaberite-- | K56: DA | L56: --Molimo odaberite-- | M56: DA
A57: =+QUESTIONNAIRE!A57 -> 0 | B57: =+QUESTIONNAIRE!B57 -> 0 | C57: =+QUESTIONNAIRE!C57 -> Ako DA: | D57: =+QUESTIONNAIRE!D57 -> 0 | E57: =+QUESTIONNAIRE!E57 -> 0 | I57: 45
A58: =+QUESTIONNAIRE!A58 -> 0 | B58: =+QUESTIONNAIRE!B58 -> 0 | C58: =+QUESTIONNAIRE!C58 -> 0 | D58: =+QUESTIONNAIRE!D58 -> Jesu li identificirani pojedinci/organizacije na koje bi investicija mogla utjecati (npr. korisnici, lokalni stanovnici)? | E58: =+QUESTIONNAIRE!E58 -> 0 | F58: =+HLOOKUP($D$6,$J$13:$S$488,I58,FALSE) -> --Molimo odaberite-- | I58: 46 | J58: --Molimo odaberite-- | K58: DA | L58: --Molimo odaberite-- | M58: DA
A59: =+QUESTIONNAIRE!A59 -> 0 | B59: =+QUESTIONNAIRE!B59 -> 0 | C59: =+QUESTIONNAIRE!C59 -> 0 | D59: =+QUESTIONNAIRE!D59 -> 0 | E59: =+QUESTIONNAIRE!E59 -> 0 | I59: 47
A60: =+QUESTIONNAIRE!A60 -> 0 | B60: =+QUESTIONNAIRE!B60 -> 0 | C60: =+QUESTIONNAIRE!C60 -> 0 | D60: =+QUESTIONNAIRE!D60 -> Jesu li ti pojedinci/organizacije konzultirani? | E60: =+QUESTIONNAIRE!E60 -> 0 | F60: =+HLOOKUP($D$6,$J$13:$S$488,I60,FALSE) -> --Molimo odaberite-- | I60: 48 | J60: --Molimo odaberite-- | K60: DA | L60: --Molimo odaberite-- | M60: DA
A61: =+QUESTIONNAIRE!A61 -> 0 | B61: =+QUESTIONNAIRE!B61 -> 0 | C61: =+QUESTIONNAIRE!C61 -> 0 | D61: =+QUESTIONNAIRE!D61 -> 0 | E61: =+QUESTIONNAIRE!E61 -> 0 | I61: 49
A62: =+QUESTIONNAIRE!A62 -> 0 | B62: =+QUESTIONNAIRE!B62 -> 0 | C62: =+QUESTIONNAIRE!C62 -> 0 | D62: =+QUESTIONNAIRE!D62 -> Postoji li proces koji će osigurati da se povratne informacije dobivene konzultacijama uzimaju u obzir kroz cijelo vrijeme procesa pripreme projekta? | E62: =+QUESTIONNAIRE!E62 -> 0 | F62: =+HLOOKUP($D$6,$J$13:$S$488,I62,FALSE) -> --Molimo odaberite-- | I62: 50 | J62: --Molimo odaberite-- | K62: DA | L62: --Molimo odaberite-- | M62: DA
A63: =+QUESTIONNAIRE!A63 -> 0 | B63: =+QUESTIONNAIRE!B63 -> 0 | C63: =+QUESTIONNAIRE!C63 -> 0 | D63: =+QUESTIONNAIRE!D63 -> 0 | E63: =+QUESTIONNAIRE!E63 -> 0 | I63: 51
A64: =+QUESTIONNAIRE!A64 -> 0 | B64: =+QUESTIONNAIRE!B64 -> 0 | C64: =+QUESTIONNAIRE!C64 -> 0 | D64: =+QUESTIONNAIRE!D64 -> Je li pripremljen plan rada i komunikacije s pojedincima/organizacijama? | E64: =+QUESTIONNAIRE!E64 -> 0 | F64: =+HLOOKUP($D$6,$J$13:$S$488,I64,FALSE) -> --Molimo odaberite-- | I64: 52 | J64: --Molimo odaberite-- | K64: DA | L64: --Molimo odaberite-- | M64: DA
A65: =+QUESTIONNAIRE!A65 -> 0 | B65: =+QUESTIONNAIRE!B65 -> 0 | C65: =+QUESTIONNAIRE!C65 -> 0 | D65: =+QUESTIONNAIRE!D65 -> 0 | E65: =+QUESTIONNAIRE!E65 -> 0 | I65: 53
A66: =+QUESTIONNAIRE!A66 -> 0 | B66: =+QUESTIONNAIRE!B66 -> 0 | C66: =+QUESTIONNAIRE!C66 -> Je li provedena prethodna procjena jesu li tehnički i pravni aspekti investicije pogodni za JPP? | F66: =+HLOOKUP($D$6,$J$13:$S$488,I66,FALSE) -> --Molimo odaberite-- | I66: 54 | J66: --Molimo odaberite-- | K66: DA | L66: --Molimo odaberite-- | M66: DA
A67: =+QUESTIONNAIRE!A67 -> 0 | B67: =+QUESTIONNAIRE!B67 -> 0 | C67: =+QUESTIONNAIRE!C67 -> Ako DA: | D67: =+QUESTIONNAIRE!D67 -> 0 | E67: =+QUESTIONNAIRE!E67 -> 0 | I67: 55
A68: =+QUESTIONNAIRE!A68 -> 0 | B68: =+QUESTIONNAIRE!B68 -> 0 | C68: =+QUESTIONNAIRE!C68 -> 0 | D68: =+QUESTIONNAIRE!D68 -> Je li procijenjena stabilnost investicijskog okvira i izlaznih specifikacija kroz kraće/srednjoročno vrijeme? | E68: =+QUESTIONNAIRE!E68 -> 0 | F68: =+HLOOKUP($D$6,$J$13:$S$488,I68,FALSE) -> --Molimo odaberite-- | I68: 56 | J68: --Molimo odaberite-- | K68: DA | L68: --Molimo odaberite-- | M68: DA
A69: =+QUESTIONNAIRE!A69 -> 0 | B69: =+QUESTIONNAIRE!B69 -> 0 | C69: =+QUESTIONNAIRE!C69 -> 0 | D69: =+QUESTIONNAIRE!D69 -> 0 | E69: =+QUESTIONNAIRE!E69 -> 0 | I69: 57
A70: =+QUESTIONNAIRE!A70 -> 0 | B70: =+QUESTIONNAIRE!B70 -> 0 | C70: =+QUESTIONNAIRE!C70 -> 0 | D70: =+QUESTIONNAIRE!D70 -> Ja li provedena analiza koja pokazuje da se investicijske potrebe mogu izraziti u obliku izlaznih specifikacija usluge te definirati u ugovornim odredbama? | E70: =+QUESTIONNAIRE!E70 -> 0 | F70: =+HLOOKUP($D$6,$J$13:$S$488,I70,FALSE) -> --Molimo odaberite-- | I70: 58 | J70: --Molimo odaberite-- | K70: DA | L70: --Molimo odaberite-- | M70: DA
A71: =+QUESTIONNAIRE!A71 -> 0 | B71: =+QUESTIONNAIRE!B71 -> 0 | C71: =+QUESTIONNAIRE!C71 -> 0 | D71: =+QUESTIONNAIRE!D71 -> 0 | E71: =+QUESTIONNAIRE!E71 -> 0 | I71: 59
A72: =+QUESTIONNAIRE!A72 -> 0 | B72: =+QUESTIONNAIRE!B72 -> 0 | C72: =+QUESTIONNAIRE!C72 -> 0 | D72: =+QUESTIONNAIRE!D72 -> Jesu li te izlazne specifikacije usluge razvijene uzimajući u obzir postojeće slučajeve ili raspoložive sektorske upute/praksu? | E72: =+QUESTIONNAIRE!E72 -> 0 | F72: =+HLOOKUP($D$6,$J$13:$S$488,I72,FALSE) -> --Molimo odaberite-- | I72: 60 | J72: --Molimo odaberite-- | K72: DA | L72: --Molimo odaberite-- | M72: DA
A73: =+QUESTIONNAIRE!A73 -> 0 | B73: =+QUESTIONNAIRE!B73 -> 0 | C73: =+QUESTIONNAIRE!C73 -> 0 | D73: =+QUESTIONNAIRE!D73 -> 0 | E73: =+QUESTIONNAIRE!E73 -> 0 | I73: 61
A74: =+QUESTIONNAIRE!A74 -> 0 | B74: =+QUESTIONNAIRE!B74 -> 0 | C74: =+QUESTIONNAIRE!C74 -> 0 | D74: =+QUESTIONNAIRE!D74 -> Je li provedena prethodna analiza da li je javno tijelo nadležno za nabavu usluga i zaključenje ugovora o JPP-u te povezanih ugovora? | E74: =+QUESTIONNAIRE!E74 -> 0 | F74: =+HLOOKUP($D$6,$J$13:$S$488,I74,FALSE) -> --Molimo odaberite-- | I74: 62 | J74: --Molimo odaberite-- | K74: DA | L74: --Molimo odaberite-- | M74: DA
A75: =+QUESTIONNAIRE!A75 -> 0 | B75: =+QUESTIONNAIRE!B75 -> 0 | C75: =+QUESTIONNAIRE!C75 -> 0 | D75: =+QUESTIONNAIRE!D75 -> 0 | E75: =+QUESTIONNAIRE!E75 -> 0 | I75: 63
A76: =+QUESTIONNAIRE!A76 -> 0 | B76: =+QUESTIONNAIRE!B76 -> 0 | C76: =+QUESTIONNAIRE!C76 -> 0 | D76: =+QUESTIONNAIRE!D76 -> 0 | E76: =+QUESTIONNAIRE!E76 -> 0 | I76: 64
A77: =+QUESTIONNAIRE!A77 -> 0 | B77: =+QUESTIONNAIRE!B77 -> 0 | C77: =+QUESTIONNAIRE!C77 -> 0 | D77: =+QUESTIONNAIRE!D77 -> 0 | E77: =+QUESTIONNAIRE!E77 -> 0 | I77: 65
A78: =+QUESTIONNAIRE!A78 -> 0 | B78: =+QUESTIONNAIRE!B78 -> 0 | C78: =+QUESTIONNAIRE!C78 -> 0 | D78: =+QUESTIONNAIRE!D78 -> 0 | E78: =+QUESTIONNAIRE!E78 -> 0 | I78: 66
A79: =+QUESTIONNAIRE!A79 -> 0 | B79: =+QUESTIONNAIRE!B79 -> 0 | C79: =+QUESTIONNAIRE!C79 -> 0 | D79: =+QUESTIONNAIRE!D79 -> 0 | E79: =+QUESTIONNAIRE!E79 -> 0 | I79: =+I78+1 -> 67
A80: =+QUESTIONNAIRE!A80 -> 0 | B80: =+QUESTIONNAIRE!B80 -> 0 | C80: =+QUESTIONNAIRE!C80 -> 0 | D80: =+QUESTIONNAIRE!D80 -> SPREMNOST ZA POČETAK PRIPREME PROJEKTA U OBLIKU JPP-a | E80: =+QUESTIONNAIRE!E80 -> 0 | I80: 68
A81: =+QUESTIONNAIRE!A81 -> 0 | B81: =+QUESTIONNAIRE!B81 -> 0 | C81: =+QUESTIONNAIRE!C81 -> 0 | D81: =+QUESTIONNAIRE!D81 -> 0 | E81: =+QUESTIONNAIRE!E81 -> 0 | I81: 69
A82: =+QUESTIONNAIRE!A82 -> 0 | B82: =+QUESTIONNAIRE!B82 -> 0 | C82: =+QUESTIONNAIRE!C82 -> 0 | D82: =+QUESTIONNAIRE!D82 -> 0 | E82: =+QUESTIONNAIRE!E82 -> 0 | I82: 70
A83: =+QUESTIONNAIRE!A83 -> 0 | B83: =+QUESTIONNAIRE!B83 -> 0 | C83: =+QUESTIONNAIRE!C83 -> 0 | D83: =+QUESTIONNAIRE!D83 -> 0 | E83: =+QUESTIONNAIRE!E83 -> 0 | I83: 71
A84: =+QUESTIONNAIRE!A84 -> 0 | B84: =+QUESTIONNAIRE!B84 -> 0 | C84: =+QUESTIONNAIRE!C84 -> Da li je analiza troškova i koristi pokazala potrebu za investicijom? | D84: =+QUESTIONNAIRE!D84 -> 0 | E84: =+QUESTIONNAIRE!E84 -> 0 | F84: =+HLOOKUP($D$6,$J$13:$S$488,I84,FALSE) -> --Molimo odaberite-- | I84: 72 | J84: --Molimo odaberite-- | K84: DA | L84: --Molimo odaberite-- | M84: DA
A85: =+QUESTIONNAIRE!A85 -> 0 | B85: =+QUESTIONNAIRE!B85 -> 0 | C85: =+QUESTIONNAIRE!C85 -> 0 | D85: =+QUESTIONNAIRE!D85 -> 0 | E85: =+QUESTIONNAIRE!E85 -> 0 | I85: 73
A86: =+QUESTIONNAIRE!A86 -> 0 | B86: =+QUESTIONNAIRE!B86 -> 0 | C86: =+QUESTIONNAIRE!C86 -> Postoji li suglasnost o okviru i zahtjevima investicije? | D86: =+QUESTIONNAIRE!D86 -> 0 | E86: =+QUESTIONNAIRE!E86 -> 0 | F86: =+HLOOKUP($D$6,$J$13:$S$488,I86,FALSE) -> --Molimo odaberite-- | I86: 74 | J86: --Molimo odaberite-- | K86: DA | L86: --Molimo odaberite-- | M86: DA
A87: =+QUESTIONNAIRE!A87 -> 0 | B87: =+QUESTIONNAIRE!B87 -> 0 | C87: =+QUESTIONNAIRE!C87 -> 0 | D87: =+QUESTIONNAIRE!D87 -> 0 | E87: =+QUESTIONNAIRE!E87 -> 0 | I87: 75
A88: =+QUESTIONNAIRE!A88 -> 0 | B88: =+QUESTIONNAIRE!B88 -> 0 | C88: =+QUESTIONNAIRE!C88 -> Postoji li potrebno odobrenje za nastavak razvoja investicije kao potencijalnog JPP-a? | F88: =+HLOOKUP($D$6,$J$13:$S$488,I88,FALSE) -> --Molimo odaberite-- | I88: 76 | J88: --Molimo odaberite-- | K88: DA | L88: --Molimo odaberite-- | M88: DA
A89: =+QUESTIONNAIRE!A89 -> 0 | B89: =+QUESTIONNAIRE!B89 -> 0 | C89: =+QUESTIONNAIRE!C89 -> 0 | D89: =+QUESTIONNAIRE!D89 -> 0 | E89: =+QUESTIONNAIRE!E89 -> 0 | I89: 77
A90: =+QUESTIONNAIRE!A90 -> 0 | B90: =+QUESTIONNAIRE!B90 -> 0 | C90: =+QUESTIONNAIRE!C90 -> 0 | D90: =+QUESTIONNAIRE!D90 -> 0 | E90: =+QUESTIONNAIRE!E90 -> 0 | I90: 78
A91: =+QUESTIONNAIRE!A91 -> 0 | B91: =+QUESTIONNAIRE!B91 -> 0 | C91: =+QUESTIONNAIRE!C91 -> 0 | D91: =+QUESTIONNAIRE!D91 -> 0 | E91: =+QUESTIONNAIRE!E91 -> 0 | I91: 79
A92: =+QUESTIONNAIRE!A92 -> Priprema projekta u obliku JPP-a | I92: 80
A93: =+QUESTIONNAIRE!A93 -> 0 | B93: =+QUESTIONNAIRE!B93 -> 0 | C93: =+QUESTIONNAIRE!C93 -> 0 | D93: =+QUESTIONNAIRE!D93 -> 0 | E93: =+QUESTIONNAIRE!E93 -> 0 | I93: 81
A94: =+QUESTIONNAIRE!A94 -> 0 | B94: =+QUESTIONNAIRE!B94 -> 0 | C94: =+QUESTIONNAIRE!C94 -> 0 | D94: =+QUESTIONNAIRE!D94 -> 0 | E94: =+QUESTIONNAIRE!E94 -> 0 | I94: 82
A95: =+QUESTIONNAIRE!A95 -> 0 | B95: =+QUESTIONNAIRE!B95 -> Upravljanje i planiranje procesom | C95: =+QUESTIONNAIRE!C95 -> 0 | D95: =+QUESTIONNAIRE!D95 -> 0 | E95: =+QUESTIONNAIRE!E95 -> 0 | I95: 83
A96: =+QUESTIONNAIRE!A96 -> 0 | B96: =+QUESTIONNAIRE!B96 -> 0 | C96: =+QUESTIONNAIRE!C96 -> 0 | D96: =+QUESTIONNAIRE!D96 -> 0 | E96: =+QUESTIONNAIRE!E96 -> 0 | I96: 84
A97: =+QUESTIONNAIRE!A97 -> 0 | B97: =+QUESTIONNAIRE!B97 -> Osnivanje i struktura projektnog tima | C97: =+QUESTIONNAIRE!C97 -> 0 | D97: =+QUESTIONNAIRE!D97 -> 0 | E97: =+QUESTIONNAIRE!E97 -> 0 | I97: 85
A98: =+QUESTIONNAIRE!A98 -> 0 | B98: =+QUESTIONNAIRE!B98 -> 0 | C98: =+QUESTIONNAIRE!C98 -> 0 | D98: =+QUESTIONNAIRE!D98 -> 0 | E98: =+QUESTIONNAIRE!E98 -> 0 | I98: 86
A99: =+QUESTIONNAIRE!A99 -> 0 | B99: =+QUESTIONNAIRE!B99 -> 0 | C99: =+QUESTIONNAIRE!C99 -> 0 | D99: =+QUESTIONNAIRE!D99 -> 0 | E99: =+QUESTIONNAIRE!E99 -> 0 | I99: 87
A100: =+QUESTIONNAIRE!A100 -> 0 | B100: =+QUESTIONNAIRE!B100 -> 0 | C100: =+QUESTIONNAIRE!C100 -> 0 | D100: =+QUESTIONNAIRE!D100 -> 0 | E100: =+QUESTIONNAIRE!E100 -> 0 | I100: 88
A101: =+QUESTIONNAIRE!A101 -> 0 | B101: =+QUESTIONNAIRE!B101 -> 0 | C101: =+QUESTIONNAIRE!C101 -> Je li osnovano stručno povjerenstvo (stručna komisija) koja će nadgledati pripremu projekta i proces javne nabave? | D101: =+QUESTIONNAIRE!D101 -> 0 | E101: =+QUESTIONNAIRE!E101 -> 0 | F101: =+HLOOKUP($D$6,$J$13:$S$488,I101,FALSE) -> --Molimo odaberite-- | I101: 89 | J101: --Molimo odaberite-- | K101: DA | L101: --Molimo odaberite-- | M101: DA
A102: =+QUESTIONNAIRE!A102 -> 0 | B102: =+QUESTIONNAIRE!B102 -> 0 | C102: =+QUESTIONNAIRE!C102 -> Ako DA: | D102: =+QUESTIONNAIRE!D102 -> 0 | E102: =+QUESTIONNAIRE!E102 -> 0 | I102: 90
A103: =+QUESTIONNAIRE!A103 -> 0 | B103: =+QUESTIONNAIRE!B103 -> 0 | C103: =+QUESTIONNAIRE!C103 -> 0 | D103: =+QUESTIONNAIRE!D103 -> Je li u javnom tijelu odabrana osoba odgovarajućih ovlasti koja ce voditi stručno povjerenstvo (stručnu komisiju) te preuzeti ukupnu odgovornost za realizaciju projekta? | E103: =+QUESTIONNAIRE!E103 -> 0 | F103: =+HLOOKUP($D$6,$J$13:$S$488,I103,FALSE) -> --Molimo odaberite-- | I103: 91 | J103: --Molimo odaberite-- | K103: DA | L103: --Molimo odaberite-- | M103: DA
A104: =+QUESTIONNAIRE!A104 -> 0 | B104: =+QUESTIONNAIRE!B104 -> 0 | C104: =+QUESTIONNAIRE!C104 -> 0 | D104: =+QUESTIONNAIRE!D104 -> 0 | E104: =+QUESTIONNAIRE!E104 -> 0 | I104: 92
A105: =+QUESTIONNAIRE!A105 -> 0 | B105: =+QUESTIONNAIRE!B105 -> 0 | C105: =+QUESTIONNAIRE!C105 -> 0 | D105: =+QUESTIONNAIRE!D105 -> Jesu li odabrani ostali članovi stručnog povjerenstva (stručne komisije) u skladu s njihovom raspolozivošću te sposobnošću da upravljaju i donose odluke za vrijeme faza pripreme i nabave projekta do potpisa ugovora. | E105: =+QUESTIONNAIRE!E105 -> 0 | F105: =+HLOOKUP($D$6,$J$13:$S$488,I105,FALSE) -> --Molimo odaberite-- | I105: 93 | J105: --Molimo odaberite-- | K105: DA | L105: --Molimo odaberite-- | M105: DA
A106: =+QUESTIONNAIRE!A106 -> 0 | B106: =+QUESTIONNAIRE!B106 -> 0 | C106: =+QUESTIONNAIRE!C106 -> 0 | D106: =+QUESTIONNAIRE!D106 -> 0 | E106: =+QUESTIONNAIRE!E106 -> 0 | I106: 94
A107: =+QUESTIONNAIRE!A107 -> 0 | B107: =+QUESTIONNAIRE!B107 -> 0 | C107: =+QUESTIONNAIRE!C107 -> 0 | D107: =+QUESTIONNAIRE!D107 -> Jesu li pravila postupanja stručnog povjerenstva (stručne komisije) dogovorena u nadležnom javnom tijelu? | E107: =+QUESTIONNAIRE!E107 -> 0 | F107: =+HLOOKUP($D$6,$J$13:$S$488,I107,FALSE) -> --Molimo odaberite-- | I107: 95 | J107: --Molimo odaberite-- | K107: DA | L107: --Molimo odaberite-- | M107: DA
A108: =+QUESTIONNAIRE!A108 -> 0 | B108: =+QUESTIONNAIRE!B108 -> 0 | C108: =+QUESTIONNAIRE!C108 -> 0 | D108: =+QUESTIONNAIRE!D108 -> 0 | E108: =+QUESTIONNAIRE!E108 -> 0 | I108: 96
A109: =+QUESTIONNAIRE!A109 -> 0 | B109: =+QUESTIONNAIRE!B109 -> 0 | C109: =+QUESTIONNAIRE!C109 -> Je li za projekt osnovan Projektni tim? | D109: =+QUESTIONNAIRE!D109 -> 0 | E109: =+QUESTIONNAIRE!E109 -> 0 | F109: =+HLOOKUP($D$6,$J$13:$S$488,I109,FALSE) -> --Molimo odaberite-- | I109: 97 | J109: --Molimo odaberite-- | K109: DA | L109: --Molimo odaberite-- | M109: DA
A110: =+QUESTIONNAIRE!A110 -> 0 | B110: =+QUESTIONNAIRE!B110 -> 0 | C110: =+QUESTIONNAIRE!C110 -> Ako DA: | D110: =+QUESTIONNAIRE!D110 -> 0 | E110: =+QUESTIONNAIRE!E110 -> 0 | I110: 98
A111: =+QUESTIONNAIRE!A111 -> 0 | B111: =+QUESTIONNAIRE!B111 -> 0 | C111: =+QUESTIONNAIRE!C111 -> 0 | D111: =+QUESTIONNAIRE!D111 -> Je li odabran Voditelj projektnog tima? | E111: =+QUESTIONNAIRE!E111 -> 0 | F111: =+HLOOKUP($D$6,$J$13:$S$488,I111,FALSE) -> --Molimo odaberite-- | I111: 99 | J111: --Molimo odaberite-- | K111: DA | L111: --Molimo odaberite-- | M111: DA
A112: =+QUESTIONNAIRE!A112 -> 0 | B112: =+QUESTIONNAIRE!B112 -> 0 | C112: =+QUESTIONNAIRE!C112 -> 0 | D112: =+QUESTIONNAIRE!D112 -> 0 | E112: =+QUESTIONNAIRE!E112 -> 0 | I112: 100
A113: =+QUESTIONNAIRE!A113 -> 0 | B113: =+QUESTIONNAIRE!B113 -> 0 | C113: =+QUESTIONNAIRE!C113 -> 0 | D113: =+QUESTIONNAIRE!D113 -> 0 | E113: =+QUESTIONNAIRE!E113 -> Je li Voditelj projektnog tima radio na sličnim projektima (sektor, veličina i tehnička zahtjevnost) u prošlosti? | F113: =+HLOOKUP($D$6,$J$13:$S$488,I113,FALSE) -> --Molimo odaberite-- | I113: 101 | J113: --Molimo odaberite-- | K113: DA | L113: --Molimo odaberite-- | M113: DA
A114: =+QUESTIONNAIRE!A114 -> 0 | B114: =+QUESTIONNAIRE!B114 -> 0 | C114: =+QUESTIONNAIRE!C114 -> 0 | D114: =+QUESTIONNAIRE!D114 -> 0 | E114: =+QUESTIONNAIRE!E114 -> 0 | I114: 102
A115: =+QUESTIONNAIRE!A115 -> 0 | B115: =+QUESTIONNAIRE!B115 -> 0 | C115: =+QUESTIONNAIRE!C115 -> 0 | D115: =+QUESTIONNAIRE!D115 -> 0 | E115: =+QUESTIONNAIRE!E115 -> Je li Voditelj projektnog tima već radio na jednom ili više projekata JPP-a? | F115: =+HLOOKUP($D$6,$J$13:$S$488,I115,FALSE) -> --Molimo odaberite-- | I115: 103 | J115: --Molimo odaberite-- | K115: DA | L115: --Molimo odaberite-- | M115: DA
A116: =+QUESTIONNAIRE!A116 -> 0 | B116: =+QUESTIONNAIRE!B116 -> 0 | C116: =+QUESTIONNAIRE!C116 -> 0 | D116: =+QUESTIONNAIRE!D116 -> 0 | E116: =+QUESTIONNAIRE!E116 -> 0 | I116: 104
A117: =+QUESTIONNAIRE!A117 -> 0 | B117: =+QUESTIONNAIRE!B117 -> 0 | C117: =+QUESTIONNAIRE!C117 -> 0 | D117: =+QUESTIONNAIRE!D117 -> 0 | E117: =+QUESTIONNAIRE!E117 -> Je li Voditelj projektnog tima posvećen projektu puno radno vrijeme? | F117: =+HLOOKUP($D$6,$J$13:$S$488,I117,FALSE) -> --Molimo odaberite-- | I117: 105 | J117: --Molimo odaberite-- | K117: DA | L117: --Molimo odaberite-- | M117: DA
A118: =+QUESTIONNAIRE!A118 -> 0 | B118: =+QUESTIONNAIRE!B118 -> 0 | C118: =+QUESTIONNAIRE!C118 -> 0 | D118: =+QUESTIONNAIRE!D118 -> 0 | E118: =+QUESTIONNAIRE!E118 -> 0 | I118: 106
A119: =+QUESTIONNAIRE!A119 -> 0 | B119: =+QUESTIONNAIRE!B119 -> 0 | C119: =+QUESTIONNAIRE!C119 -> 0 | D119: =+QUESTIONNAIRE!D119 -> Jesu li procijenjeni ljudski resursi potrebni za pripremu i nabavu projekta? | E119: =+QUESTIONNAIRE!E119 -> 0 | F119: =+HLOOKUP($D$6,$J$13:$S$488,I119,FALSE) -> --Molimo odaberite-- | I119: 107 | J119: --Molimo odaberite-- | K119: DA | L119: --Molimo odaberite-- | M119: DA
A120: =+QUESTIONNAIRE!A120 -> 0 | B120: =+QUESTIONNAIRE!B120 -> 0 | C120: =+QUESTIONNAIRE!C120 -> 0 | D120: =+QUESTIONNAIRE!D120 -> 0 | E120: =+QUESTIONNAIRE!E120 -> 0 | I120: 108
A121: =+QUESTIONNAIRE!A121 -> 0 | B121: =+QUESTIONNAIRE!B121 -> 0 | C121: =+QUESTIONNAIRE!C121 -> 0 | D121: =+QUESTIONNAIRE!D121 -> 0 | E121: =+QUESTIONNAIRE!E121 -> Da li ta procjena uzima u obzir potrebnu razinu stručnosti i količinu ljudskih resursa? | F121: =+HLOOKUP($D$6,$J$13:$S$488,I121,FALSE) -> --Molimo odaberite-- | I121: 109 | J121: --Molimo odaberite-- | K121: DA | L121: --Molimo odaberite-- | M121: DA
A122: =+QUESTIONNAIRE!A122 -> 0 | B122: =+QUESTIONNAIRE!B122 -> 0 | C122: =+QUESTIONNAIRE!C122 -> 0 | D122: =+QUESTIONNAIRE!D122 -> 0 | E122: =+QUESTIONNAIRE!E122 -> 0 | I122: 110
A123: =+QUESTIONNAIRE!A123 -> 0 | B123: =+QUESTIONNAIRE!B123 -> 0 | C123: =+QUESTIONNAIRE!C123 -> 0 | D123: =+QUESTIONNAIRE!D123 -> 0 | E123: =+QUESTIONNAIRE!E123 -> Da li se ta procjena temelji na analizi ljudskih resursa u ranijim sličnim projektima? | F123: =+HLOOKUP($D$6,$J$13:$S$488,I123,FALSE) -> --Molimo odaberite-- | I123: 111 | J123: --Molimo odaberite-- | K123: DA | L123: --Molimo odaberite-- | M123: DA
A124: =+QUESTIONNAIRE!A124 -> 0 | B124: =+QUESTIONNAIRE!B124 -> 0 | C124: =+QUESTIONNAIRE!C124 -> 0 | D124: =+QUESTIONNAIRE!D124 -> 0 | E124: =+QUESTIONNAIRE!E124 -> 0 | I124: 112
A125: =+QUESTIONNAIRE!A125 -> 0 | B125: =+QUESTIONNAIRE!B125 -> 0 | C125: =+QUESTIONNAIRE!C125 -> 0 | D125: =+QUESTIONNAIRE!D125 -> 0 | E125: =+QUESTIONNAIRE!E125 -> Da li ova analiza sadrži ljudske resurse dostupne u javnom tijelu i javnom sektoru te vanjske usluge konzultanata koje trebaju biti ugovorene? | F125: =+HLOOKUP($D$6,$J$13:$S$488,I125,FALSE) -> --Molimo odaberite-- | I125: 113 | J125: --Molimo odaberite-- | K125: DA | L125: --Molimo odaberite-- | M125: DA
A126: =+QUESTIONNAIRE!A126 -> 0 | B126: =+QUESTIONNAIRE!B126 -> 0 | C126: =+QUESTIONNAIRE!C126 -> 0 | D126: =+QUESTIONNAIRE!D126 -> 0 | E126: =+QUESTIONNAIRE!E126 -> 0 | I126: 114
A127: =+QUESTIONNAIRE!A127 -> 0 | B127: =+QUESTIONNAIRE!B127 -> 0 | C127: =+QUESTIONNAIRE!C127 -> 0 | D127: =+QUESTIONNAIRE!D127 -> 0 | E127: =+QUESTIONNAIRE!E127 -> Jesu li procijenjeni ukupni troškovi potrebnih internih i vanjskih aktivnosti? | F127: =+HLOOKUP($D$6,$J$13:$S$488,I127,FALSE) -> --Molimo odaberite-- | I127: 115 | J127: --Molimo odaberite-- | K127: DA | L127: --Molimo odaberite-- | M127: DA
A128: =+QUESTIONNAIRE!A128 -> 0 | B128: =+QUESTIONNAIRE!B128 -> 0 | C128: =+QUESTIONNAIRE!C128 -> 0 | D128: =+QUESTIONNAIRE!D128 -> 0 | E128: =+QUESTIONNAIRE!E128 -> 0 | I128: 116
A129: =+QUESTIONNAIRE!A129 -> 0 | B129: =+QUESTIONNAIRE!B129 -> 0 | C129: =+QUESTIONNAIRE!C129 -> 0 | D129: =+QUESTIONNAIRE!#REF! ->  | E129: =+QUESTIONNAIRE!D129 -> Je li odobren proračun koji će pokriti potrebne ljudske resurse? | F129: =+HLOOKUP($D$6,$J$13:$S$488,I129,FALSE) -> --Molimo odaberite-- | I129: 117 | J129: --Molimo odaberite-- | K129: DA | L129: --Molimo odaberite-- | M129: DA
A130: =+QUESTIONNAIRE!A130 -> 0 | B130: =+QUESTIONNAIRE!B130 -> 0 | C130: =+QUESTIONNAIRE!C130 -> 0 | D130: =+QUESTIONNAIRE!D130 -> 0 | E130: =+QUESTIONNAIRE!E130 -> 0 | I130: 118
A131: =+QUESTIONNAIRE!A131 -> 0 | B131: =+QUESTIONNAIRE!B131 -> 0 | C131: =+QUESTIONNAIRE!C131 -> 0 | D131: =+QUESTIONNAIRE!D131 -> 0 | E131: =+QUESTIONNAIRE!E131 -> Je li proračun za vanjske usluge konzultanata utemeljen na procjeni tržisnih troškova? | F131: =+HLOOKUP($D$6,$J$13:$S$488,I131,FALSE) -> --Molimo odaberite-- | I131: 119 | J131: --Molimo odaberite-- | K131: DA | L131: --Molimo odaberite-- | M131: DA
A132: =+QUESTIONNAIRE!A132 -> 0 | B132: =+QUESTIONNAIRE!B132 -> 0 | C132: =+QUESTIONNAIRE!C132 -> 0 | D132: =+QUESTIONNAIRE!D132 -> 0 | E132: =+QUESTIONNAIRE!E132 -> 0 | I132: 120
A133: =+QUESTIONNAIRE!A133 -> 0 | B133: =+QUESTIONNAIRE!B133 -> 0 | C133: =+QUESTIONNAIRE!C133 -> 0 | D133: =+QUESTIONNAIRE!D133 -> Jesu li Projektnom timu dodijeljene ovlasti potrebne za provođenje pripreme i nabave projekta? | E133: =+QUESTIONNAIRE!E133 -> 0 | F133: =+HLOOKUP($D$6,$J$13:$S$488,I133,FALSE) -> --Molimo odaberite-- | I133: 121 | J133: --Molimo odaberite-- | K133: DA | L133: --Molimo odaberite-- | M133: DA
A134: =+QUESTIONNAIRE!A134 -> 0 | B134: =+QUESTIONNAIRE!B134 -> 0 | C134: =+QUESTIONNAIRE!C134 -> 0 | D134: =+QUESTIONNAIRE!D134 -> 0 | E134: =+QUESTIONNAIRE!E134 -> 0 | I134: 122
A135: =+QUESTIONNAIRE!A135 -> 0 | B135: =+QUESTIONNAIRE!B135 -> 0 | C135: =+QUESTIONNAIRE!C135 -> Jesu li ugovoreni iskusni pravni, financijski i tehnički konzultanti? | D135: =+QUESTIONNAIRE!D135 -> 0 | E135: =+QUESTIONNAIRE!E135 -> 0 | F135: =+HLOOKUP($D$6,$J$13:$S$488,I135,FALSE) -> --Molimo odaberite-- | I135: 123 | J135: --Molimo odaberite-- | K135: DA | L135: --Molimo odaberite-- | M135: DA
A136: =+QUESTIONNAIRE!A136 -> 0 | B136: =+QUESTIONNAIRE!B136 -> 0 | C136: =+QUESTIONNAIRE!C136 -> Ako DA: | D136: =+QUESTIONNAIRE!D136 -> 0 | E136: =+QUESTIONNAIRE!E136 -> 0 | I136: 124
A137: =+QUESTIONNAIRE!A137 -> 0 | B137: =+QUESTIONNAIRE!B137 -> 0 | C137: =+QUESTIONNAIRE!C137 -> 0 | D137: =+QUESTIONNAIRE!D137 -> Jesu li konzultanti odabrani u postupku javnog nadmetanja? | E137: =+QUESTIONNAIRE!E137 -> 0 | F137: =+HLOOKUP($D$6,$J$13:$S$488,I137,FALSE) -> --Molimo odaberite-- | I137: 125 | J137: --Molimo odaberite-- | K137: DA | L137: --Molimo odaberite-- | M137: DA
A138: =+QUESTIONNAIRE!A138 -> 0 | B138: =+QUESTIONNAIRE!B138 -> 0 | C138: =+QUESTIONNAIRE!C138 -> 0 | D138: =+QUESTIONNAIRE!D138 -> 0 | E138: =+QUESTIONNAIRE!E138 -> 0 | I138: 126
A139: =+QUESTIONNAIRE!A139 -> 0 | B139: =+QUESTIONNAIRE!B139 -> 0 | C139: =+QUESTIONNAIRE!C139 -> 0 | D139: =+QUESTIONNAIRE!D139 -> Da li je javno tijelo konzultantima dalo jasan projektni zadatak za konzultantske usluge? | E139: =+QUESTIONNAIRE!E139 -> 0 | F139: =+HLOOKUP($D$6,$J$13:$S$488,I139,FALSE) -> --Molimo odaberite-- | I139: 127 | J139: --Molimo odaberite-- | K139: DA | L139: --Molimo odaberite-- | M139: DA
A140: =+QUESTIONNAIRE!A140 -> 0 | B140: =+QUESTIONNAIRE!B140 -> 0 | C140: =+QUESTIONNAIRE!C140 -> 0 | D140: =+QUESTIONNAIRE!D140 -> 0 | E140: =+QUESTIONNAIRE!E140 -> 0 | I140: 128
A141: =+QUESTIONNAIRE!A141 -> 0 | B141: =+QUESTIONNAIRE!B141 -> 0 | C141: =+QUESTIONNAIRE!C141 -> 0 | D141: =+QUESTIONNAIRE!D141 -> Jesu li mogući sukobi interesa između konzultanata i potencijalnih ponuditelja uzeti u obzir? | E141: =+QUESTIONNAIRE!E141 -> 0 | F141: =+HLOOKUP($D$6,$J$13:$S$488,I141,FALSE) -> --Molimo odaberite-- | I141: 129 | J141: --Molimo odaberite-- | K141: DA | L141: --Molimo odaberite-- | M141: DA
A142: =+QUESTIONNAIRE!A142 -> 0 | B142: =+QUESTIONNAIRE!B142 -> 0 | C142: =+QUESTIONNAIRE!C142 -> 0 | D142: =+QUESTIONNAIRE!D142 -> 0 | E142: =+QUESTIONNAIRE!E142 -> 0 | I142: 130
A143: =+QUESTIONNAIRE!A143 -> 0 | B143: =+QUESTIONNAIRE!B143 -> 0 | C143: =+QUESTIONNAIRE!C143 -> 0 | D143: =+QUESTIONNAIRE!D143 -> Imaju li pojedinci iz konzultantskih kompanija, koji će raditi na projektu, dokazano iskustvo i stručnost u svojim područjima? | E143: =+QUESTIONNAIRE!E143 -> 0 | F143: =+HLOOKUP($D$6,$J$13:$S$488,I143,FALSE) -> --Molimo odaberite-- | I143: =+I142+1 -> 131 | J143: --Molimo odaberite-- | K143: DA | L143: --Molimo odaberite-- | M143: DA
A144: =+QUESTIONNAIRE!A144 -> 0 | B144: =+QUESTIONNAIRE!B144 -> 0 | C144: =+QUESTIONNAIRE!C144 -> 0 | D144: =+QUESTIONNAIRE!D144 -> 0 | E144: =+QUESTIONNAIRE!E144 -> 0 | I144: 132
A145: =+QUESTIONNAIRE!A145 -> 0 | B145: =+QUESTIONNAIRE!B145 -> 0 | C145: =+QUESTIONNAIRE!C145 -> 0 | D145: =+QUESTIONNAIRE!D145 -> Jesu li procijenjene potrebe za ostalim konzultantskim uslugama (npr. pitanje osiguranja, porezna pitanja, financijsko modeliranje, zaštita okoliša)? | E145: =+QUESTIONNAIRE!E145 -> 0 | F145: =+HLOOKUP($D$6,$J$13:$S$488,I145,FALSE) -> --Molimo odaberite-- | I145: 133 | J145: --Molimo odaberite-- | K145: DA | L145: --Molimo odaberite-- | M145: DA
A146: =+QUESTIONNAIRE!A146 -> 0 | B146: =+QUESTIONNAIRE!B146 -> 0 | C146: =+QUESTIONNAIRE!C146 -> 0 | D146: =+QUESTIONNAIRE!D146 -> 0 | E146: =+QUESTIONNAIRE!E146 -> 0 | I146: 134
A147: =+QUESTIONNAIRE!A147 -> 0 | B147: =+QUESTIONNAIRE!B147 -> 0 | C147: =+QUESTIONNAIRE!C147 -> 0 | D147: =+QUESTIONNAIRE!D147 -> 0 | E147: =+QUESTIONNAIRE!E147 -> 0 | I147: 135
A148: =+QUESTIONNAIRE!A148 -> 0 | B148: =+QUESTIONNAIRE!B148 -> 0 | C148: =+QUESTIONNAIRE!C148 -> 0 | D148: =+QUESTIONNAIRE!D148 -> 0 | E148: =+QUESTIONNAIRE!E148 -> 0 | I148: 136
A149: =+QUESTIONNAIRE!A149 -> 0 | B149: =+QUESTIONNAIRE!B149 -> Dobivanje potrebnih dozvola i odobrenja | C149: =+QUESTIONNAIRE!C149 -> 0 | D149: =+QUESTIONNAIRE!D149 -> 0 | E149: =+QUESTIONNAIRE!E149 -> 0 | I149: 137
A150: =+QUESTIONNAIRE!A150 -> 0 | B150: =+QUESTIONNAIRE!B150 -> 0 | C150: =+QUESTIONNAIRE!C150 -> 0 | D150: =+QUESTIONNAIRE!D150 -> 0 | E150: =+QUESTIONNAIRE!E150 -> 0 | I150: 138
A151: =+QUESTIONNAIRE!A151 -> 0 | B151: =+QUESTIONNAIRE!B151 -> 0 | C151: =+QUESTIONNAIRE!C151 -> 0 | D151: =+QUESTIONNAIRE!D151 -> 0 | E151: =+QUESTIONNAIRE!E151 -> 0 | I151: 139
A152: =+QUESTIONNAIRE!A152 -> 0 | B152: =+QUESTIONNAIRE!B152 -> 0 | C152: =+QUESTIONNAIRE!C152 -> 0 | D152: =+QUESTIONNAIRE!D152 -> 0 | E152: =+QUESTIONNAIRE!E152 -> 0 | I152: 140
A153: =+QUESTIONNAIRE!A153 -> 0 | B153: =+QUESTIONNAIRE!B153 -> 0 | C153: =+QUESTIONNAIRE!C153 -> Je li izvršena procjena svih neophodnih autorizacija, dozvola i odobrenja potrebnih za implementaciju projekta? | D153: =+QUESTIONNAIRE!D153 -> 0 | E153: =+QUESTIONNAIRE!E153 -> 0 | F153: =+HLOOKUP($D$6,$J$13:$S$488,I153,FALSE) -> --Molimo odaberite-- | I153: 141 | J153: --Molimo odaberite-- | K153: DA | L153: --Molimo odaberite-- | M153: DA
A154: =+QUESTIONNAIRE!A154 -> 0 | B154: =+QUESTIONNAIRE!B154 -> 0 | C154: =+QUESTIONNAIRE!C154 -> Ako DA: | D154: =+QUESTIONNAIRE!D154 -> 0 | E154: =+QUESTIONNAIRE!E154 -> 0 | I154: 142
A155: =+QUESTIONNAIRE!A155 -> 0 | B155: =+QUESTIONNAIRE!B155 -> 0 | C155: =+QUESTIONNAIRE!C155 -> 0 | D155: =+QUESTIONNAIRE!D155 -> Da li ta procjena uključuje dostupnost zemljišta, eksproprijaciju, pitanja zaštite okoliša, zdravlja i sigurnosti? | E155: =+QUESTIONNAIRE!E155 -> 0 | F155: =+HLOOKUP($D$6,$J$13:$S$488,I155,FALSE) -> --Molimo odaberite-- | I155: 143 | J155: --Molimo odaberite-- | K155: DA | L155: --Molimo odaberite-- | M155: DA
A156: =+QUESTIONNAIRE!A156 -> 0 | B156: =+QUESTIONNAIRE!B156 -> 0 | C156: =+QUESTIONNAIRE!C156 -> 0 | D156: =+QUESTIONNAIRE!D156 -> 0 | E156: =+QUESTIONNAIRE!E156 -> 0 | I156: 144
A157: =+QUESTIONNAIRE!A157 -> 0 | B157: =+QUESTIONNAIRE!B157 -> ∞ | C157: =+QUESTIONNAIRE!C157 -> 0 | D157: =+QUESTIONNAIRE!D157 -> Da li proračun za pripremu projekta uključuje troškove dobivanja dozvola i odobrenja? (Pogledajte Osnivanje i struktura projektnog tima) | E157: =+QUESTIONNAIRE!E157 -> 0 | F157: =+HLOOKUP($D$6,$J$13:$S$488,I157,FALSE) -> --Molimo odaberite-- | I157: 145 | J157: --Molimo odaberite-- | K157: DA | L157: --Molimo odaberite-- | M157: DA
A158: =+QUESTIONNAIRE!A158 -> 0 | B158: =+QUESTIONNAIRE!B158 -> 0 | C158: =+QUESTIONNAIRE!C158 -> 0 | D158: =+QUESTIONNAIRE!D158 -> 0 | E158: =+QUESTIONNAIRE!E158 -> 0 | I158: 146
A159: =+QUESTIONNAIRE!A159 -> 0 | B159: =+QUESTIONNAIRE!B159 -> 0 | C159: =+QUESTIONNAIRE!C159 -> 0 | D159: =+QUESTIONNAIRE!D159 -> Da li procjena identificira osobe/tijela koja su zadužena za dobivanje dozvola i odobrenja? | E159: =+QUESTIONNAIRE!E159 -> 0 | F159: =+HLOOKUP($D$6,$J$13:$S$488,I159,FALSE) -> --Molimo odaberite-- | I159: 147 | J159: --Molimo odaberite-- | K159: DA | L159: --Molimo odaberite-- | M159: DA
A160: =+QUESTIONNAIRE!A160 -> 0 | B160: =+QUESTIONNAIRE!B160 -> 0 | C160: =+QUESTIONNAIRE!C160 -> 0 | D160: =+QUESTIONNAIRE!D160 -> 0 | E160: =+QUESTIONNAIRE!E160 ->  | I160: 148
A161: =+QUESTIONNAIRE!A161 -> 0 | B161: =+QUESTIONNAIRE!B161 -> 0 | C161: =+QUESTIONNAIRE!C161 -> 0 | D161: =+QUESTIONNAIRE!D161 -> Jesu li procijenjeni rizici povezani s dobivanjem dozvola i odobrenja te jesu li ti rizici uneseni u tablicu rizika? | E161: =+QUESTIONNAIRE!E161 -> 0 | F161: =+HLOOKUP($D$6,$J$13:$S$488,I161,FALSE) -> --Molimo odaberite-- | I161: 149 | J161: --Molimo odaberite-- | K161: DA | L161: --Molimo odaberite-- | M161: DA
A162: =+QUESTIONNAIRE!A162 -> 0 | B162: =+QUESTIONNAIRE!B162 -> 0 | C162: =+QUESTIONNAIRE!C162 -> 0 | D162: =+QUESTIONNAIRE!D162 -> 0 | E162: =+QUESTIONNAIRE!E162 -> 0 | I162: 150
A163: =+QUESTIONNAIRE!A163 -> 0 | B163: =+QUESTIONNAIRE!B163 -> 0 | C163: =+QUESTIONNAIRE!C163 -> 0 | D163: =+QUESTIONNAIRE!D163 -> 0 | E163: =+QUESTIONNAIRE!E163 -> 0 | I163: 151
A164: =+QUESTIONNAIRE!A164 -> 0 | B164: =+QUESTIONNAIRE!B164 -> Razvoj plana i rasporeda aktivnosti | C164: =+QUESTIONNAIRE!C164 -> 0 | D164: =+QUESTIONNAIRE!D164 -> 0 | E164: =+QUESTIONNAIRE!E164 -> 0 | I164: 152
A165: =+QUESTIONNAIRE!A165 -> 0 | B165: =+QUESTIONNAIRE!B165 -> 0 | C165: =+QUESTIONNAIRE!C165 -> 0 | D165: =+QUESTIONNAIRE!D165 -> 0 | E165: =+QUESTIONNAIRE!E165 -> 0 | I165: 153
A166: =+QUESTIONNAIRE!A166 -> 0 | B166: =+QUESTIONNAIRE!B166 -> 0 | C166: =+QUESTIONNAIRE!C166 -> 0 | D166: =+QUESTIONNAIRE!D166 -> 0 | E166: =+QUESTIONNAIRE!E166 -> 0 | I166: 154
A167: =+QUESTIONNAIRE!A167 -> 0 | B167: =+QUESTIONNAIRE!B167 -> 0 | C167: =+QUESTIONNAIRE!C167 -> 0 | D167: =+QUESTIONNAIRE!D167 -> 0 | E167: =+QUESTIONNAIRE!E167 -> 0 | I167: 155
A168: =+QUESTIONNAIRE!A168 -> 0 | B168: =+QUESTIONNAIRE!B168 -> 0 | C168: =+QUESTIONNAIRE!C168 -> Ima li javno tijelo usvojen plan za upravljanje pripremom i nabavom projekta? | D168: =+QUESTIONNAIRE!D168 -> 0 | E168: =+QUESTIONNAIRE!E168 -> 0 | F168: =+HLOOKUP($D$6,$J$13:$S$488,I168,FALSE) -> --Molimo odaberite-- | I168: 156 | J168: --Molimo odaberite-- | K168: DA | L168: --Molimo odaberite-- | M168: DA
A169: =+QUESTIONNAIRE!A169 -> 0 | B169: =+QUESTIONNAIRE!B169 -> 0 | C169: =+QUESTIONNAIRE!C169 -> Ako DA: | D169: =+QUESTIONNAIRE!D169 -> 0 | E169: =+QUESTIONNAIRE!E169 -> 0 | I169: 157
A170: =+QUESTIONNAIRE!A170 -> 0 | B170: =+QUESTIONNAIRE!B170 -> 0 | C170: =+QUESTIONNAIRE!C170 -> 0 | D170: =+QUESTIONNAIRE!D170 -> Jesu li definirane uloge svih članova projektnog tima? | E170: =+QUESTIONNAIRE!E170 -> 0 | F170: =+HLOOKUP($D$6,$J$13:$S$488,I170,FALSE) -> --Molimo odaberite-- | I170: 158 | J170: --Molimo odaberite-- | K170: DA | L170: --Molimo odaberite-- | M170: DA
A171: =+QUESTIONNAIRE!A171 -> 0 | B171: =+QUESTIONNAIRE!B171 -> 0 | C171: =+QUESTIONNAIRE!C171 -> 0 | D171: =+QUESTIONNAIRE!D171 -> 0 | E171: =+QUESTIONNAIRE!E171 -> 0 | I171: 159
A172: =+QUESTIONNAIRE!A172 -> 0 | B172: =+QUESTIONNAIRE!B172 -> 0 | C172: =+QUESTIONNAIRE!C172 -> 0 | D172: =+QUESTIONNAIRE!D172 -> Postoji li postupak za zapisivanje bilo koje izmjene tehničkih karakteristika i ugovornih odredbi projekta za vrijeme njegove pripreme? | E172: =+QUESTIONNAIRE!E172 -> 0 | F172: =+HLOOKUP($D$6,$J$13:$S$488,I172,FALSE) -> --Molimo odaberite-- | I172: 160 | J172: --Molimo odaberite-- | K172: DA | L172: --Molimo odaberite-- | M172: DA
A173: =+QUESTIONNAIRE!A173 -> 0 | B173: =+QUESTIONNAIRE!B173 -> 0 | C173: =+QUESTIONNAIRE!C173 -> 0 | D173: =+QUESTIONNAIRE!D173 -> 0 | E173: =+QUESTIONNAIRE!E173 -> 0 | I173: 161
A174: =+QUESTIONNAIRE!A174 -> 0 | B174: =+QUESTIONNAIRE!B174 -> 0 | C174: =+QUESTIONNAIRE!C174 -> 0 | D174: =+QUESTIONNAIRE!D174 -> Postoji li plan za dobivanje svih potrebnih autorizacija, dozvola i odobrenja za vrijeme procesa pripreme i nabave projekta? | E174: =+QUESTIONNAIRE!E174 -> 0 | F174: =+HLOOKUP($D$6,$J$13:$S$488,I174,FALSE) -> --Molimo odaberite-- | I174: 162 | J174: --Molimo odaberite-- | K174: DA | L174: --Molimo odaberite-- | M174: DA
A175: =+QUESTIONNAIRE!A175 -> 0 | B175: =+QUESTIONNAIRE!B175 -> 0 | C175: =+QUESTIONNAIRE!C175 -> 0 | D175: =+QUESTIONNAIRE!D175 -> 0 | E175: =+QUESTIONNAIRE!E175 -> 0 | I175: 163
A176: =+QUESTIONNAIRE!A176 -> 0 | B176: =+QUESTIONNAIRE!B176 -> 0 | C176: =+QUESTIONNAIRE!C176 -> Je li donesen raspored aktivnosti koji odražava zahtjeve pripreme i nabave projekta? | D176: =+QUESTIONNAIRE!D176 -> 0 | E176: =+QUESTIONNAIRE!E176 -> 0 | F176: =+HLOOKUP($D$6,$J$13:$S$488,I176,FALSE) -> --Molimo odaberite-- | I176: 164 | J176: --Molimo odaberite-- | K176: DA | L176: --Molimo odaberite-- | M176: DA
A177: =+QUESTIONNAIRE!A177 -> 0 | B177: =+QUESTIONNAIRE!B177 -> 0 | C177: =+QUESTIONNAIRE!C177 -> Ako DA: | D177: =+QUESTIONNAIRE!D177 -> 0 | E177: =+QUESTIONNAIRE!E177 -> 0 | I177: 165
A178: =+QUESTIONNAIRE!A178 -> 0 | B178: =+QUESTIONNAIRE!B178 -> 0 | C178: =+QUESTIONNAIRE!C178 -> 0 | D178: =+QUESTIONNAIRE!D178 -> Da li raspored aktivnosti uključuje bilo koji neophodan postupak javnih konzultacija? | E178: =+QUESTIONNAIRE!E178 -> 0 | F178: =+HLOOKUP($D$6,$J$13:$S$488,I178,FALSE) -> --Molimo odaberite-- | I178: 166 | J178: --Molimo odaberite-- | K178: DA | L178: --Molimo odaberite-- | M178: DA
A179: =+QUESTIONNAIRE!A179 -> 0 | B179: =+QUESTIONNAIRE!B179 -> 0 | C179: =+QUESTIONNAIRE!C179 -> 0 | D179: =+QUESTIONNAIRE!D179 -> 0 | E179: =+QUESTIONNAIRE!E179 -> 0 | I179: 167
A180: =+QUESTIONNAIRE!A180 -> 0 | B180: =+QUESTIONNAIRE!B180 -> ∞ | C180: =+QUESTIONNAIRE!C180 -> 0 | D180: =+QUESTIONNAIRE!D180 -> Da li raspored aktivnosti omogućava dovoljno vremena za dobivanje svih potrebnih dozvola i odobrenja? | E180: =+QUESTIONNAIRE!E180 -> 0 | F180: =+HLOOKUP($D$6,$J$13:$S$488,I180,FALSE) -> --Molimo odaberite-- | I180: 168 | J180: --Molimo odaberite-- | K180: DA | L180: --Molimo odaberite-- | M180: DA
A181: =+QUESTIONNAIRE!A181 -> 0 | B181: =+QUESTIONNAIRE!B181 -> 0 | C181: =+QUESTIONNAIRE!C181 -> 0 | D181: =+QUESTIONNAIRE!D181 -> (Pogledaje Dobivanje potrebnih dozvola i odobrenja) | E181: =+QUESTIONNAIRE!E181 -> 0 | I181: 169
A182: =+QUESTIONNAIRE!A182 -> 0 | B182: =+QUESTIONNAIRE!B182 -> 0 | C182: =+QUESTIONNAIRE!C182 -> 0 | D182: =+QUESTIONNAIRE!D182 -> 0 | E182: =+QUESTIONNAIRE!E182 -> 0 | I182: 170
A183: =+QUESTIONNAIRE!A183 -> 0 | B183: =+QUESTIONNAIRE!B183 -> ∞ | C183: =+QUESTIONNAIRE!C183 -> 0 | D183: =+QUESTIONNAIRE!D183 -> Da li raspored aktivnosti omogućava dovoljno vremena za dobivanje odobrenja za bilo koje vanjske izvore sredstava (npr.nepovratna sredstva - "grants")? | E183: =+QUESTIONNAIRE!E183 -> 0 | F183: =+HLOOKUP($D$6,$J$13:$S$488,I183,FALSE) -> --Molimo odaberite-- | I183: 171 | J183: --Molimo odaberite-- | K183: DA | L183: --Molimo odaberite-- | M183: DA
A184: =+QUESTIONNAIRE!A184 -> 0 | B184: =+QUESTIONNAIRE!B184 -> 0 | C184: =+QUESTIONNAIRE!C184 -> 0 | D184: =+QUESTIONNAIRE!D184 -> Pogledajte Razvoj analize priuštivosti | E184: =+QUESTIONNAIRE!E184 -> 0 | I184: 172
A185: =+QUESTIONNAIRE!A185 -> 0 | B185: =+QUESTIONNAIRE!B185 -> 0 | C185: =+QUESTIONNAIRE!C185 -> 0 | D185: =+QUESTIONNAIRE!D185 -> 0 | E185: =+QUESTIONNAIRE!E185 -> 0 | I185: 173
A186: =+QUESTIONNAIRE!A186 -> 0 | B186: =+QUESTIONNAIRE!B186 -> ∞ | C186: =+QUESTIONNAIRE!C186 -> 0 | D186: =+QUESTIONNAIRE!D186 -> Da li raspored aktivnosti omogućava dovoljno vremena za adekvatno provođenje procesa nabave, uključujući prikupljanje financijskih sredstava? | E186: =+QUESTIONNAIRE!E186 -> 0 | F186: =+HLOOKUP($D$6,$J$13:$S$488,I186,FALSE) -> --Molimo odaberite-- | I186: 174 | J186: --Molimo odaberite-- | K186: DA | L186: --Molimo odaberite-- | M186: DA
A187: =+QUESTIONNAIRE!A187 -> 0 | B187: =+QUESTIONNAIRE!B187 -> 0 | C187: =+QUESTIONNAIRE!C187 -> 0 | D187: =+QUESTIONNAIRE!D187 -> (Pogledajte Provođenje ispitivanja tržišta i analize bankabilnosti) | E187: =+QUESTIONNAIRE!E187 -> 0 | I187: 175
A188: =+QUESTIONNAIRE!A188 -> 0 | B188: =+QUESTIONNAIRE!B188 -> 0 | C188: =+QUESTIONNAIRE!C188 -> 0 | D188: =+QUESTIONNAIRE!D188 -> 0 | E188: =+QUESTIONNAIRE!E188 -> 0 | I188: 176
A189: =+QUESTIONNAIRE!A189 -> 0 | B189: =+QUESTIONNAIRE!B189 -> 0 | C189: =+QUESTIONNAIRE!C189 -> 0 | D189: =+QUESTIONNAIRE!D189 -> Da li raspored aktivnosti identificira ključne korake u postupku pripreme i nabave te prikazuje odnose između zadataka? | E189: =+QUESTIONNAIRE!E189 -> 0 | F189: =+HLOOKUP($D$6,$J$13:$S$488,I189,FALSE) -> --Molimo odaberite-- | I189: 177 | J189: --Molimo odaberite-- | K189: DA | L189: --Molimo odaberite-- | M189: DA
A190: =+QUESTIONNAIRE!A190 -> 0 | B190: =+QUESTIONNAIRE!B190 -> 0 | C190: =+QUESTIONNAIRE!C190 -> 0 | D190: =+QUESTIONNAIRE!D190 -> 0 | E190: =+QUESTIONNAIRE!E190 -> 0 | I190: 178
A191: =+QUESTIONNAIRE!A191 -> 0 | B191: =+QUESTIONNAIRE!B191 -> 0 | C191: =+QUESTIONNAIRE!C191 -> 0 | D191: =+QUESTIONNAIRE!D191 -> Da li je raspored aktivnosti u potpunosti prihvaćen i odobren od stručnog povjerenstva (stručne komisije) te odgovarajućeg javnog tijela? | E191: =+QUESTIONNAIRE!E191 -> 0 | F191: =+HLOOKUP($D$6,$J$13:$S$488,I191,FALSE) -> --Molimo odaberite-- | I191: 179 | J191: --Molimo odaberite-- | K191: DA | L191: --Molimo odaberite-- | M191: DA
A192: =+QUESTIONNAIRE!A192 -> 0 | B192: =+QUESTIONNAIRE!B192 -> 0 | C192: =+QUESTIONNAIRE!C192 -> 0 | D192: =+QUESTIONNAIRE!D192 -> 0 | E192: =+QUESTIONNAIRE!E192 -> 0 | I192: 180
A193: =+QUESTIONNAIRE!A193 -> 0 | B193: =+QUESTIONNAIRE!B193 -> 0 | C193: =+QUESTIONNAIRE!C193 -> 0 | D193: =+QUESTIONNAIRE!D193 -> Da li je razvijen početni plan za vođenje projeka u fazi nakon potpisivanja ugovora, uključujući upravljanje ugovorom, identifikaciju i obuku ključnih pojedinaca te osiguravanje učinkovitog podnošenja izvještaja i informacija o projektu? | E193: =+QUESTIONNAIRE!E193 -> 0 | F193: =+HLOOKUP($D$6,$J$13:$S$488,I193,FALSE) -> --Molimo odaberite-- | I193: 181 | J193: --Molimo odaberite-- | K193: DA | L193: --Molimo odaberite-- | M193: DA
A194: =+QUESTIONNAIRE!A194 -> 0 | B194: =+QUESTIONNAIRE!B194 -> 0 | C194: =+QUESTIONNAIRE!C194 -> 0 | D194: =+QUESTIONNAIRE!D194 -> 0 | E194: =+QUESTIONNAIRE!E194 -> 0 | I194: 182
A195: =+QUESTIONNAIRE!A195 -> 0 | B195: =+QUESTIONNAIRE!B195 -> 0 | C195: =+QUESTIONNAIRE!C195 -> 0 | D195: =+QUESTIONNAIRE!D195 -> 0 | E195: =+QUESTIONNAIRE!E195 -> 0 | I195: 183
A196: =+QUESTIONNAIRE!A196 -> 0 | B196: =+QUESTIONNAIRE!B196 -> 0 | C196: =+QUESTIONNAIRE!C196 -> 0 | D196: =+QUESTIONNAIRE!D196 -> 0 | E196: =+QUESTIONNAIRE!E196 -> 0 | I196: 184
A197: =+QUESTIONNAIRE!A197 -> 0 | B197: =+QUESTIONNAIRE!B197 -> 0 | C197: =+QUESTIONNAIRE!C197 -> 0 | D197: =+QUESTIONNAIRE!D197 -> 0 | E197: =+QUESTIONNAIRE!E197 -> 0 | I197: 185
A198: =+QUESTIONNAIRE!A198 -> 0 | B198: =+QUESTIONNAIRE!B198 -> Razvoj JPP projekta | E198: =+QUESTIONNAIRE!E198 -> 0 | I198: 186
A199: =+QUESTIONNAIRE!A199 -> 0 | B199: =+QUESTIONNAIRE!B199 -> 0 | C199: =+QUESTIONNAIRE!C199 -> 0 | D199: =+QUESTIONNAIRE!D199 -> 0 | E199: =+QUESTIONNAIRE!E199 -> 0 | I199: 187
A200: =+QUESTIONNAIRE!A200 -> 0 | B200: =+QUESTIONNAIRE!B200 -> Razvoj analize priuštivosti | C200: =+QUESTIONNAIRE!C200 -> 0 | D200: =+QUESTIONNAIRE!D200 -> 0 | E200: =+QUESTIONNAIRE!E200 -> 0 | I200: 188
A201: =+QUESTIONNAIRE!A201 -> 0 | B201: =+QUESTIONNAIRE!B201 -> 0 | C201: =+QUESTIONNAIRE!C201 -> 0 | D201: =+QUESTIONNAIRE!D201 -> 0 | E201: =+QUESTIONNAIRE!E201 -> 0 | I201: 189
A202: =+QUESTIONNAIRE!A202 -> 0 | B202: =+QUESTIONNAIRE!B202 -> 0 | C202: =+QUESTIONNAIRE!C202 -> 0 | D202: =+QUESTIONNAIRE!D202 -> 0 | E202: =+QUESTIONNAIRE!E202 -> 0 | I202: 190
A203: =+QUESTIONNAIRE!A203 -> 0 | B203: =+QUESTIONNAIRE!B203 -> 0 | C203: =+QUESTIONNAIRE!C203 -> 0 | D203: =+QUESTIONNAIRE!D203 -> 0 | E203: =+QUESTIONNAIRE!E203 -> 0 | I203: 191
A204: =+QUESTIONNAIRE!A204 -> 0 | B204: =+QUESTIONNAIRE!B204 -> 0 | C204: =+QUESTIONNAIRE!C204 -> Je li pripremljena analiza priuštivosti da bi se dokazalo da su javno tijelo i/ili krajnji korisnici sposobni plaćati za projekt? | D204: =+QUESTIONNAIRE!D204 -> 0 | E204: =+QUESTIONNAIRE!E204 -> 0 | F204: =+HLOOKUP($D$6,$J$13:$S$488,I204,FALSE) -> --Molimo odaberite-- | I204: 192 | J204: --Molimo odaberite-- | K204: DA | L204: --Molimo odaberite-- | M204: DA
A205: =+QUESTIONNAIRE!A205 -> 0 | B205: =+QUESTIONNAIRE!B205 -> 0 | C205: =+QUESTIONNAIRE!C205 -> Ako DA: | D205: =+QUESTIONNAIRE!D205 -> 0 | E205: =+QUESTIONNAIRE!E205 -> 0 | I205: 193
A206: =+QUESTIONNAIRE!A206 -> 0 | B206: =+QUESTIONNAIRE!B206 -> 0 | C206: =+QUESTIONNAIRE!C206 -> 0 | D206: =+QUESTIONNAIRE!D206 -> Jesu li procijenjeni ukupni životni troškovi projekta? | E206: =+QUESTIONNAIRE!E206 -> 0 | F206: =+HLOOKUP($D$6,$J$13:$S$488,I206,FALSE) -> --Molimo odaberite-- | I206: 194 | J206: --Molimo odaberite-- | K206: DA | L206: --Molimo odaberite-- | M206: DA
A207: =+QUESTIONNAIRE!A207 -> 0 | B207: =+QUESTIONNAIRE!B207 -> 0 | C207: =+QUESTIONNAIRE!C207 -> 0 | D207: =+QUESTIONNAIRE!D207 -> 0 | E207: =+QUESTIONNAIRE!E207 -> 0 | I207: =+I206+1 -> 195
... 291 more rows

Sheet Lists (hidden)
B4: PROCUREMENT TOOLS
A5: PROCUREMENTMETHOD | B5: Procurement Method
B6: Open Procurement
B7: Restricted Procurement
B8: Negotiated Procedure
B9: Competitive Dialogue
B12: Maturity Questions
A13: YESNO | B13: Yes / NO | D13: YES/NO
B14: --Molimo odaberite-- | D14: DA
B15: DA
B16: NE | D16: NE
A19: WhereIsTheProject | B19: WhereIsTheProject
B20: Identifying and selecting the project investment | C20: 1
B21: The project has been selected to be implemented | C21: 2
B22: Assessing the PPP option | C22: 3
B23: Preparing the PPP project for procurement | C23: 4
B24: The project is ready to got ot the market | C24: 5
B27: Identifying and selecting the project investment
B28: Assessing the PPP option
B29: Preparing the PPP project for procurement
B30: Running the procurement process
B31: Reaching contract signature and financial close
